Cogmind - Beta 14 @@@ ROGUE MODE // 2024.08.24 @ 03:02:23 Player: Trione Result: Escaped singularity! Performance ------------- Evolutions (9) 4500 Regions Visited (31) 6200 Robots Destroyed (564) 2820 Value Destroyed (29008) 29008 Prototype IDs (299) 5980 Alien Tech Used (13) 2600 Bonus (56197) 56197 TOTAL SCORE: 107305 Bonus ------- High Alert Combat Kills 6464 Follower Combat Kills 4065 Awakened Behemoth Slayer 1000 Network Hubs Disabled 200 Registered with UFD 300 Met Imprinter 300 Met Warlord at Base 500 MAIN.C Attacked Warlord 500 Warlord Defense Kills 1422 Built Enhanced Grunts 300 Met R17 at Cetus 500 Used Core Reset Matrix 3000 Met R17 at Research 2000 Scanned by Researcher 500 Destroyed MAIN.C Guards 500 Met MAIN.C 5000 Destroyed MAIN.C Shell 5000 Destroyed MAIN.C 10000 Met Architect 300 Destroyed A8 300 Destroyed A6 400 Destroyed A5 500 Destroyed Architect 15000 Win 3000 Friendly Fire -4854 Cogmind --------- Core Integrity 548/1600 Matter 20/300 Energy 348/350 System Corruption 4% Temperature Cool (0) Movement Core (50) Location Near Former Tau Ceti IV Parts ------- > --- POWER (2) -------- (None) > --- PROPULSION (6) --- (None) > --- UTILITY (14) ----- (None) > --- WEAPON (3) ------- (None) > --- INVENTORY (7) ---- Enhanced Armored Heavy Treads Advanced Energy Well (500) Advanced Weapon Cycler Heavy Regenerative Plating Graviton Cannon Peak State ------------ > --- POWER ------------ Zero-point Reactor Zero-point Reactor > --- PROPULSION ------- Enhanced Armored Heavy Treads Advanced Heavy Siege Treads High-density Centrium Heavy Treads > --- UTILITY ---------- Huge Storage Unit Experimental Energy Well Experimental Optical Array Experimental Targeting Computer Experimental Targeting Computer Experimental Armor Integrity Analyzer Advanced Weapon Cycler Experimental Cloaking Device Heavy Regenerative Plating Graphene Brace Thermal Barrier AEGIS Remote Shield Experimental System Purifier > --- WEAPON ----------- Compact HERF Cannon Enhanced Nova Cannon Null Cannon > --- INVENTORY -------- Vortex Chain Reactor Enhanced Armored Heavy Treads Advanced Heavy Siege Treads Experimental Energy Well YI-UF0's Bottomless Matter Pit Advanced Kinecellerator Quantum Capacitor Heavy Regenerative Plating Experimental Focal Shield Beam Splitter AEGIS Remote Shield Long-range Tractor Beam Transdimensional Reconstructor Vortex Rail Graviton Cannon Graviton Cannon Heavy Proton Missile Launcher Long-range Missile Launcher Vortex Catalyst Activator [Rating: 241] Favorites ----------- Power Reinforced Ion Engine Engine Reinforced Ion Engine Power Core Neutrino Core Reactor Vortex Chain Reactor Propulsion Overtuned Huge Scrapsphere Treads Advanced Heavy Siege Treads Leg Overtuned Flexi-carbon Leg Wheel Overtuned Huge Scrapsphere Utility Huge Storage Unit Device Graphene Brace Storage Huge Storage Unit Processor Experimental Targeting Computer Hackware Experimental Hacking Suite Protection Heavy Regenerative Plating Artifact Core Physics Calibrator Weapon Overtuned Coil Gun Energy Gun Enhanced Gamma Rifle Energy Cannon Enhanced Nova Cannon Ballistic Gun Overtuned Coil Gun Ballistic Cannon Linear Accelerator Launcher Heavy Proton Missile Launcher Impact Weapon Flail Slashing Weapon Axe Piercing Weapon CR-A16's Pointy Stick Special Melee Weapon Datajack Build | -11 -10 -10 -9 -9 -8 -8 -8 -8 -6 -6 -6 -6 -5 -5 -5 -5 -5 -4 -4 -4 -4 -4 -4 -3 -3 -3 -2 -2 -1 -1 -1 ------- Run | Yrd Mat Min Mat Min Mat Sto Rec Scr Fac Low Low Zio Pro Fac Upp Upp War Pro Fac Ext Cet Arc Hub Res Qua Sec Res Tes Acc Com Ac0 Slots Evolved 18 | . . . 2 . 2 . . . 4 . . . . 2 . . . . 2 . . . . 2 . . 2 . 2 . . Power 1 | . . . . . . . . . 1 . . . . . . . . . . . . . . . . . . . . . . Propulsion 4 | . . . 1 . . . . . . . . . . 1 . . . . . . . . . 1 . . 1 . . . . Utility 12 | . . . 1 . 1 . . . 3 . . . . 1 . . . . 2 . . . . 1 . . 1 . 2 . . Weapon 1 | . . . . . 1 . . . . . . . . . . . . . . . . . . . . . . . . . . Parts Attached 959 | 7 24 7 41 7 9 30 9 12 62 22 4 5 17 46 25 9 22 12 6 36 11 27 15 40 80 100 12 57 28 114 63 Power 45 | 1 2 . . . . 1 1 . 10 . . . . 4 . . 2 . . . . . . 3 5 2 . 6 3 4 1 Engine 14 | 1 2 . . . . 1 1 . 7 . . . . 2 . . . . . . . . . . . . . . . . . Core 5 | . . . . . . . . . 2 . . . . 2 . . 1 . . . . . . . . . . . . . . Reactor 26 | . . . . . . . . . 1 . . . . . . . 1 . . . . . . 3 5 2 . 6 3 4 1 Propulsion 92 | 2 8 1 6 . 3 8 3 7 9 . . . . 2 1 . . . . 4 2 3 2 8 10 4 1 3 . 4 1 Treads 44 | . 5 . 4 . 1 5 . 3 1 . . . . . . . . . . 2 1 2 1 2 4 4 1 3 . 4 1 Leg 1 | . . . . . . . . 1 . . . . . . . . . . . . . . . . . . . . . . . Wheel 47 | 2 3 1 2 . 2 3 3 3 8 . . . . 2 1 . . . . 2 1 1 1 6 6 . . . . . . Hover . | . . . . . . . . . . . . . . . . . . . . . . . . . . . . . . . . Flight . | . . . . . . . . . . . . . . . . . . . . . . . . . . . . . . . . Utility 446 | 2 4 . 7 . 2 2 3 3 25 11 3 2 7 24 14 4 9 6 5 19 5 17 9 14 37 65 8 23 16 69 31 Device 311 | 1 . . 2 . . . 2 1 16 8 2 2 3 16 8 3 5 5 3 13 2 12 5 7 29 49 8 22 14 47 26 Storage 33 | 1 2 . . . . . 1 1 . 2 . . 1 . . . 3 . . . . . . . 3 9 . 1 1 8 . Processor 26 | . 1 . 1 . . . . . 4 . . . . . . . . . 2 . . . . 1 1 5 . . . 10 1 Hackware 5 | . . . . . . . . . 1 . . . . . . . . . . . . . 1 2 1 . . . . . . Protection 70 | . 1 . 4 . 2 2 . 1 4 1 1 . 3 8 6 1 1 1 . 6 3 5 3 4 3 1 . . 1 4 4 Artifact 1 | . . . . . . . . . . . . . . . . . . . . . . . . . . 1 . . . . . Weapon 376 | 2 10 6 28 7 4 19 2 2 18 11 1 3 10 16 10 5 11 6 1 13 4 7 4 15 28 29 3 25 9 37 30 Energy Gun 21 | 1 . . . . . . . . 2 . . . . 2 . . 3 . . . . . 1 1 2 . . 4 1 4 . Energy Cannon 108 | . . . 10 2 1 2 . . . 3 . . 4 2 4 2 1 3 1 1 1 2 2 4 8 13 1 8 2 14 17 Ballistic Gun 73 | 1 5 3 11 . 3 9 1 1 9 3 . . 1 5 . 1 1 . . 4 1 3 1 4 2 1 . . . 3 . Ballistic Cannon 37 | . . . . . . . . . . . . . . . . . . . . . . . . . 7 5 2 9 3 5 6 Launcher 70 | . . 3 3 4 . 3 . . 1 2 . 1 5 2 6 2 2 2 . 2 1 . . 3 1 5 . 3 3 9 7 Special Weapon . | . . . . . . . . . . . . . . . . . . . . . . . . . . . . . . . . Impact Weapon 22 | . 5 . 4 1 . 5 1 . . . . . . . . . . . . . . . . . 2 1 . 1 . 2 . Slashing Weapon 10 | . . . . . . . . . 6 3 1 . . . . . . . . . . . . . . . . . . . . Piercing Weapon 25 | . . . . . . . . . . . . 1 . 5 . . 2 1 . 2 . 2 . 3 5 4 . . . . . Special Melee Weapon 10 | . . . . . . . . 1 . . . 1 . . . . 2 . . 4 1 . . . 1 . . . . . . Unidentified Prototypes 46 | . . . 2 . . 1 . . . 1 . 1 2 . . . 7 . . . . 1 . 1 9 12 . 4 . 5 . Corrupted Parts 5 | . . . . . . . . . . . . . 1 . . . . . . . . 3 . . . . . 1 . . . System Corruption 36 | . . . . . . . . . . . . . 5 . . . . . . . . 30 . . . . . 1 . . . Parts Lost 54 | . 1 . 1 . 1 4 2 . 15 . . . 1 4 . . . . . . 2 . . 1 8 . . . 1 6 7 Power 10 | . . . . . . 1 1 . 3 . . . . 2 . . . . . . . . . 1 . . . . . 1 1 Propulsion 16 | . 1 . . . 1 1 . . 4 . . . . . . . . . . . . . . . 6 . . . . 2 1 Utility 19 | . . . 1 . . . 1 . 6 . . . 1 . . . . . . . 1 . . . 2 . . . 1 2 4 Weapon 9 | . . . . . . 2 . . 2 . . . . 2 . . . . . . 1 . . . . . . . . 1 1 Highest Loss Streak 12 | . 1 . 1 . 1 2 2 . 12 . . . 1 2 . . . . . . 2 . . 1 4 . . . 1 3 2 To Critical Strikes . | . . . . . . . . . . . . . . . . . . . . . . . . . . . . . . . . Average Slot Usage (%) 85 | . 100 100 99 100 95 100 99 95 88 79 80 80 83 81 82 82 78 76 78 76 73 73 77 84 87 79 77 79 79 80 73 Engine 4 | . 14 14 11 11 9 9 9 9 6 6 6 6 6 7 5 5 2 . . . . . . . . . . . . . . Core 1 | . . . . . . . . . 4 6 6 6 6 2 5 5 2 . . . . . . . . . . . . . . Reactor 2 | . . . . . . . . . . . . . . . . . 2 5 5 5 5 5 5 6 8 4 4 6 8 8 4 Treads 6 | . 4 . 7 11 9 12 9 6 . . . . . . . . . . . . . . . 2 6 10 13 13 12 11 12 Wheel 11 | . 23 28 25 22 14 14 18 20 16 13 13 13 13 11 11 11 11 11 10 9 9 9 9 12 10 2 . . . . . Device 17 | . 7 . 5 11 9 9 11 14 16 19 20 20 22 28 22 24 26 26 26 22 20 26 22 18 15 15 16 16 19 19 19 Storage 6 | . 14 14 11 11 9 9 9 9 6 6 6 6 6 5 5 5 5 5 5 5 5 5 5 4 5 5 4 4 4 6 4 Processor 8 | . 3 . 5 11 9 9 9 8 5 . . . . . . . . . 9 10 9 5 5 8 11 14 17 17 16 18 20 Hackware 1 | . . . . . . . . . 3 . . . . . . . . . . . . . 1 5 8 5 4 4 4 . . Protection 5 | . 2 14 11 . 9 9 6 . 5 5 6 6 7 5 11 9 6 6 5 6 7 8 11 7 4 4 4 4 4 4 4 Energy Cannon 5 | . . . 11 12 4 5 9 . . 3 6 6 14 5 8 4 2 3 5 6 9 5 3 3 3 8 7 5 4 8 4 Ballistic Gun 7 | . 18 13 6 . 18 20 17 18 7 12 6 6 4 6 6 10 7 11 10 6 1 2 8 5 1 . . . . . . Special Melee Weapon 1 | . . . . . . . . 8 . . . . . . . . 2 . . 1 . . . . . . . . . . . Peak Build Rating 241 | 7 11 12 17 17 20 22 23 38 82 93 88 88 90 105 104 107 122 123 132 132 143 145 148 154 187 202 206 220 229 241 239 Average Rating 115 | 4 10 11 15 16 19 20 21 27 67 84 86 87 83 99 103 104 110 120 131 126 128 132 140 144 156 189 205 209 224 226 232 On Entrance 100 | . 7 11 12 17 16 20 21 23 38 78 81 88 86 83 99 96 107 120 121 132 127 143 139 138 149 183 189 206 208 226 239 Naked Turns 3 | . . . . . . . . . . . . . . . . . . . . . . . . . . . . . . . 3 Heaviest Build 207 | 14 97 97 103 98 104 103 104 113 143 151 147 146 149 143 149 145 169 169 162 177 180 171 172 169 166 192 187 195 197 207 207 Greatest Support 250 | 32 32 26 42 22 26 26 26 36 40 28 28 28 28 52 40 40 40 40 40 40 40 80 40 100 180 210 210 225 215 250 250 Greatest Overweight (x) 15 | . 5 3 4 4 10 6 4 6 15 5 5 5 5 6 3 3 4 4 4 8 8 4 4 4 5 1 . . . 1 . Average Overweight (x) 2 | . 2 3 3 4 3 4 3 3 3 4 4 5 4 2 3 3 3 3 3 3 4 3 3 2 2 . . . . . . Largest Inventory Capacity 27 | 8 25 25 25 25 25 25 25 25 25 25 25 25 25 25 25 25 25 25 25 25 25 25 25 25 25 27 27 27 27 27 27 Average Capacity 25 | 7 20 25 25 25 25 25 25 25 25 25 25 25 25 25 25 25 25 25 25 25 25 25 25 25 25 25 27 27 27 27 26 Most Carried 27 | 4 24 25 25 25 25 25 25 25 25 25 25 25 25 25 25 25 25 25 25 25 25 25 25 25 25 27 27 27 27 27 27 Average Carried 24 | 2 16 24 24 24 23 24 24 24 24 25 24 24 24 24 24 24 24 25 24 24 24 23 24 24 24 24 25 26 26 24 24 Final Capacity 27 | 8 25 25 25 25 25 25 25 25 25 25 25 25 25 25 25 25 25 25 25 25 25 25 25 25 25 27 27 27 27 27 7 Final Carried 27 | 4 23 25 25 25 23 25 25 25 25 25 25 25 25 25 25 25 25 25 25 25 25 25 25 25 25 27 27 27 26 27 7 Class Distribution -------------------- 30% | Scavenger-Scrapper 19% | Alien-Gunner 13% | Scavenger-Mutant 11% | Mutant 4% | Alien-Skirmisher 4% | Scavenger-Tank Dominant Class ---------------- Mutant | -10/Materials Mutant | -10/Mines Mutant | -9/Materials Scavenger-Mutant | -9/Mines Scavenger-Tank | -8/Materials Scavenger-Tank | -8/Storage Scavenger-Tank | -8/Recycling Scavenger-Mutant | -8/Scraptown Scrapper | -6/Factory Scavenger-Scrapper | -6/Lower Caves Scavenger-Scrapper | -6/Lower Caves Scavenger-Scrapper | -6/Zion Scavenger-Scrapper | -5/Proximity Caves Scavenger-Scrapper | -5/Factory Scavenger-Scrapper | -5/Upper Caves Scavenger-Scrapper | -5/Upper Caves Scavenger-Scrapper | -5/Warlord Scavenger-Scrapper | -4/Proximity Caves Scavenger-Scrapper | -4/Factory Scavenger-Scrapper | -4/Extension Scavenger-Scrapper | -4/Cetus Scavenger-Scrapper | -4/Archives Scavenger-Scrapper | -4/Hub_04(d) Scavenger-Assassin | -3/Research Scavenger-Assassin | -3/Quarantine Alien-Tank | -3/Section 7 Alien-Skirmisher | -2/Research Alien-Skirmisher | -2/Testing Alien-Gunner | -1/Access Alien-Gunner | -1/Command Alien-Gunner | -1/Access_0 Resources | -11 -10 -10 -9 -9 -8 -8 -8 -8 -6 -6 -6 -6 -5 -5 -5 -5 -5 -4 -4 -4 -4 -4 -4 -3 -3 -3 -2 -2 -1 -1 -1 ----------- Run | Yrd Mat Min Mat Min Mat Sto Rec Scr Fac Low Low Zio Pro Fac Upp Upp War Pro Fac Ext Cet Arc Hub Res Qua Sec Res Tes Acc Com Ac0 Matter Collected 18899 | 279 669 147 670 119 124 705 315 429 1241 540 300 40 219 1748 708 134 1095 292 50 693 170 343 254 523 1705 1851 227 419 270 1082 1538 Remotely 4089 | . . . . . . . . . . . . . . 168 . . 917 . . . 10 288 . 111 674 915 . 103 . 434 469 Salvage Created 30394 | 96 900 42 1376 140 182 1364 959 . 1144 257 83 . 1081 1686 362 131 825 268 50 967 532 408 717 1173 1893 2516 417 1690 2402 5176 1557 Parts 1402 | 4 39 16 89 16 10 87 35 . 65 12 . . 42 83 19 10 33 11 2 37 18 27 33 44 92 104 19 86 116 185 68 Haulers Intercepted 12 | . 2 . 3 . . 4 . . . . . . . . . . . . . . . . . 2 . . . . 1 . . Recyclers Shooed 17 | . 2 . 2 . 1 3 1 . 1 . . . . 1 . . . . . 2 . . . 1 . 3 . . . . . Parts Field Recycled . | . . . . . . . . . . . . . . . . . . . . . . . . . . . . . . . . Retrieved Matter . | . . . . . . . . . . . . . . . . . . . . . . . . . . . . . . . . Parts Self-Destructed 64 | . . . . . . . . . . 15 12 . 16 . 10 5 . 6 . . . . . . . . . . . . . Prevented 30 | . . . . . . . . . . . . . 21 . 8 . . 1 . . . . . . . . . . . . . Kills | -11 -10 -10 -9 -9 -8 -8 -8 -8 -6 -6 -6 -6 -5 -5 -5 -5 -5 -4 -4 -4 -4 -4 -4 -3 -3 -3 -2 -2 -1 -1 -1 ------- Run | Yrd Mat Min Mat Min Mat Sto Rec Scr Fac Low Low Zio Pro Fac Upp Upp War Pro Fac Ext Cet Arc Hub Res Qua Sec Res Tes Acc Com Ac0 Combat Hostiles Destroyed 409 | . 10 7 32 4 2 21 3 . 11 11 . . 18 20 11 8 12 5 . 11 7 1 3 8 25 39 4 18 32 59 27 Melee 10 | . 2 . 2 . . . . . 3 . . . . . . . . . . . . . . . 1 . . 1 1 . . Guns 69 | . 6 . 8 . 2 13 . . 7 1 . . 1 7 . . 6 3 . 3 . 1 2 . 3 . . 1 3 2 . Cannons 106 | . . . 10 . . 2 3 . . 1 . . 2 6 1 . . 1 . 3 . . . . 13 22 3 5 6 16 12 AOE 116 | . . 7 10 4 . 6 . . 1 8 . . 13 3 8 8 5 1 . 3 . . . 5 . 6 . 3 6 19 . Classes Destroyed 28 | 2 5 2 2 . . . . . 4 1 . . 2 . . 1 2 1 . 1 . . . . 2 3 . . . . . Worker 34 | . 3 . 1 . . . . . 1 . . . . 1 . . . . . 2 . . 10 5 1 1 4 4 . 1 . Builder 21 | . . 1 . . . 2 . . 2 . . . . 3 . . . . . . . . 1 2 4 . . 6 . . . Tunneler 3 | 1 . . . 1 . . . . . . . . . . . . . . . . . . 1 . . . . . . . . Hauler 12 | . 2 . 3 . . 4 . . . . . . . . . . . . . . . . . 2 . . . . 1 . . Recycler 33 | 1 2 . 3 . 1 2 11 . 3 . . . . 4 . . . . . 1 . . 1 3 . . . . . 1 . Minesweeper 2 | . . . . . . . . . . 1 . . . . 1 . . . . . . . . . . . . . . . . Mechanic 7 | . 1 . 1 . . . . . . . . . . 1 . . . . . . . . . . . 1 . 1 1 1 . Operator 13 | . . . 1 . . 1 . . . . . . . . . . . . . . . 8 1 . . . . 1 . 1 . Drone 3 | . . . . . . . . . . . . . . . . . . 2 . . . . 1 . . . . . . . . Watcher 18 | . 3 . 4 . . 1 . . 1 . . . . 1 . . . . 1 . . . . 1 1 1 . . 2 2 . Swarmer 84 | . . 7 14 4 . 4 . . 1 5 . . 4 6 8 8 2 . . 3 . . . 4 . 8 . . 6 . . Saboteur 2 | . . . . . . . . . . . . . . . . . . . . . . . . . . 1 . . 1 . . Grunt 103 | . 10 . 13 . . 7 . . 5 4 . . 5 2 . . 2 . . 3 . . 1 4 7 11 . 6 4 19 . Brawler 13 | . . . . . . . . . . . . . 3 . . . . . . . . . . . . 2 . 1 3 4 . Duelist 12 | . . . . . . . . . 1 . . . 5 . . . 1 . . . . . . . . . . . 4 1 . Protector 4 | . . . . . . . . . . . . . 1 . . . . 1 . . . . . . . . . . . 2 . Researcher 1 | . . . . . . . . . . . . . . . . . . . . . . . . . 1 . . . . . . Sentry 37 | . . . 5 . 2 10 3 . . 2 . . . 3 1 . . . . 2 . 1 2 . . 2 . . 1 3 . Specialist 14 | . . . . . . . . . . . . . . . . . 2 . . . . . . . 3 . 2 3 . 4 . Hunter 33 | . . . . . . . . . 2 . . . . 5 2 . 4 . . 1 . . . . 2 2 2 3 4 6 . Programmer 54 | . . . . . . . . . 1 . . . . 4 . . 3 3 . . . . . . 12 7 . 3 8 13 . Heavy 1 | . . . . . . . . . 1 . . . . . . . . . . . . . . . . . . . . . . Q-Series 3 | . . . . . . . . . . . . . . . . . . . . . . . . . . 1 . 2 . . . Behemoth 6 | . . . . . . . . . . . . . . . . . . . . 2 . . . . . 2 . . 1 1 . Cetus Guard 7 | . . . . . . . . . . . . . . . . . . . . . 7 . . . . . . . . . . S7 Guard 1 | . . . . . . . . . . . . . . . . . . . . . . . . . . 1 . . . . . M Guard 2 | . . . . . . . . . . . . . . . . . . . . . . . . . . . . . . 2 . Enhanced Grunt 16 | . . . . . . . . . . . . . . . . . 1 . . . . . 1 . . . . . . . 14 Enhanced Sentry 1 | . . . . . . . . . . . . . . . . . . . . . . . . . . . . . . . 1 Enhanced Hunter 8 | . . . . . . . . . . . . . . . . . . . . . . . . . . . . . . . 8 Combat Programmer 2 | . . . . . . . . . . . . . . . . . . . . . . . . . . . . . . 2 . Executioner 2 | . . . . . . . . . . . . . . . . . . . . . . . . . . 2 . . . . . Fortress 1 | . . . . . . . . . . . . . . . . . . . . . . . . . 1 . . . . . . Decomposer 1 | . . . . . . . . . . 1 . . . . . . . . . . . . . . . . . . . . . Packrat 1 | . . . . . . . . . . . 1 . . . . . . . . . . . . . . . . . . . . Samaritan 1 | . . . . . . . . . . . . . . . . 1 . . . . . . . . . . . . . . . Thug 1 | . . . . . . . . . . . . . 1 . . . . . . . . . . . . . . . . . . Guerrilla 1 | . . . . . . . . . . . . . . . . . . . . . . 1 . . . . . . . . . Mutant 3 | . . . . . . . . . . . . . . . . . 3 . . . . . . . . . . . . . . Best Kill Streak 13 | 2 4 4 6 4 2 10 7 . 3 6 . . 9 4 4 8 6 2 1 4 4 3 12 8 6 7 4 10 11 13 4 Combat Bots Only 13 | . 2 3 4 3 1 6 1 . 3 5 . . 9 3 4 8 6 2 . 4 4 1 1 4 3 7 2 6 10 13 4 Max Kills in Single Turn 13 | 1 2 2 4 3 1 3 1 . 1 2 1 . 4 2 4 4 4 1 1 3 1 1 13 3 2 2 1 6 4 6 1 Gunslinging . | . . . . . . . . . . . . . . . . . . . . . . . . . . . . . . . . Exploded 6 | . . 2 4 3 . 2 . . 1 2 . . 4 2 4 4 4 1 . 3 . . . 3 . 2 . 2 4 6 . Melee 1 | . 1 . 1 . . . . . 1 . . . . . . . . . . . . . . . 1 . . 1 1 . . Uniques/NPCs Destroyed 7 | . . . . 1 . . . . . . . . . . . . . . . . . . . . . . . . . 2 4 YI-UF0 (-9/Mines) MAIN.C Shell (-1/Command) MAIN.C (-1/Command) A8 (-1/Access_0) A6 (-1/Access_0) A5 (-1/Access_0) Architect (-1/Access_0) Combat | -11 -10 -10 -9 -9 -8 -8 -8 -8 -6 -6 -6 -6 -5 -5 -5 -5 -5 -4 -4 -4 -4 -4 -4 -3 -3 -3 -2 -2 -1 -1 -1 -------- Run | Yrd Mat Min Mat Min Mat Sto Rec Scr Fac Low Low Zio Pro Fac Upp Upp War Pro Fac Ext Cet Arc Hub Res Qua Sec Res Tes Acc Com Ac0 Hostile Shots Fired 3103 | . 53 13 101 5 18 85 10 . 174 56 . . 45 144 29 11 20 27 . 43 52 4 36 22 238 215 33 96 119 551 903 Missed 903 | . 17 6 32 2 5 27 1 . 29 23 . . 16 38 3 5 7 12 . 10 16 1 8 6 61 56 9 17 19 92 385 Intercepted 10 | . . . . . . . . . . . . . . . . . . . . . . . . . . . . . . 10 . Damage Taken 32021 | . 438 126 805 62 187 887 127 . 2557 528 . . 634 2007 430 184 180 236 . 644 744 76 756 403 3826 1479 219 648 950 5919 6969 Core 2520 | . 130 10 105 9 . 105 27 . 345 6 . . 82 347 36 12 16 . . 70 95 . 25 18 149 64 . . 54 224 591 Absorbed by Shields 16414 | . . . . . . . . . 156 . . . . . . . 87 68 . 315 196 . . . . 1537 227 685 934 5512 6697 Reduced by Siege Mode 1762 | . . . . . . . . . . . . . . . . . . . . 14 . . 12 . 179 69 21 115 106 684 562 Redirected to Shielding 39 | . . . . . . . . . . . . . 10 29 . . . . . . . . . . . . . . . . . Ignored by Resistances 5767 | . . . . . . . . . 15 . . . . . . . . . . . . . . . . 450 336 802 298 1718 2148 Regen/Repaired (Parts) 5863 | . . . . . . . . . 44 . . 10 19 82 29 10 68 10 . 63 . . . 32 . 955 67 187 287 2849 1151 Core Remaining (%) 69 | 100 . 44 . 71 . . . 76 . . . . 49 . . . . 58 . . . . 83 . . 82 . 100 . . 34 Volleys Fired 2192 | 3 42 7 85 9 12 68 23 . 48 42 12 . 35 82 102 42 29 59 3 61 17 15 29 21 80 159 53 155 154 284 461 Largest 3 | 2 2 1 2 1 3 3 3 . 3 3 1 . 3 3 3 1 2 3 3 3 1 2 3 2 3 3 3 3 1 3 2 Hottest 295 | 60 40 33 128 33 128 106 114 . 205 147 85 . 187 216 220 90 64 154 154 154 88 122 157 182 280 295 265 280 130 160 210 Shots Fired 3012 | 6 78 7 157 9 31 178 64 . 91 60 12 . 58 159 110 41 45 85 5 96 17 16 53 24 131 254 76 191 154 314 490 Gun 943 | 6 78 . 64 . 25 140 41 . 91 18 . . 6 97 5 . 38 42 2 55 . 15 30 3 17 . . 22 50 98 . Cannon 1851 | . . . 88 . 6 30 23 . . 27 12 . 41 57 76 36 . 42 3 36 7 1 23 9 110 236 76 161 93 193 465 Launcher 218 | . . 7 5 9 . 8 . . . 15 . . 11 5 29 5 7 1 . 5 10 . . 12 4 18 . 8 11 23 25 Special . | . . . . . . . . . . . . . . . . . . . . . . . . . . . . . . . . Kinetic 975 | 3 78 . 64 . 25 140 41 . 57 18 . . 6 76 5 . 35 42 2 55 . 15 26 . 79 61 20 14 1 43 69 Thermal 1515 | 3 . . 88 . 6 30 23 . 34 21 12 . 34 57 76 36 . 42 3 29 . 1 15 . 18 168 41 142 92 174 370 Explosive 75 | . . 7 5 2 . 8 . . . 15 . . . 2 8 5 . . . 1 . . . 8 . 2 . . 2 . 10 Electromagnetic 407 | . . . . 7 . . . . . 6 . . 18 24 21 . 7 1 . 11 17 . 8 13 34 20 15 31 59 75 40 Entropic 40 | . . . . . . . . . . . . . . . . . 3 . . . . . 4 3 . 3 . 4 . 22 1 Robot Hit Streak 49 | 3 12 . 11 6 12 18 10 . 7 23 . . 6 22 7 3 7 8 1 21 8 16 3 11 15 14 35 24 35 43 49 Robot Miss Streak 6 | 1 3 2 4 . 3 3 3 . 5 2 . . 2 4 2 3 2 6 2 3 . 1 4 . 3 3 2 2 1 3 5 Penetration Max 1 | . . . . . . . . . . . . . 1 1 . . 1 . . 1 . . 1 . 1 . . . . 1 . Secondary Targets 7 | . . . . . . 1 . . 2 . . . . . . . 3 . . . . . 1 . . . . . . . . Max Gunslinging Chain 1 | . . . . . . 1 . . 1 . . . . . . . 1 . . . . . 1 . . . . . . . . Capacitor 763 | . . . . . . . . . . . . . . . . . . . . . . . . . . . . . 142 227 394 Shots Hit Robots 1783 | 4 66 . 113 3 21 111 34 1 73 27 1 2 18 99 12 4 36 29 1 79 8 25 20 26 93 127 41 85 81 233 310 Core Hits 990 | 2 26 10 50 7 5 50 15 . 34 28 . . 37 38 15 10 41 7 1 30 6 13 28 21 36 66 15 43 50 155 151 Critical Kills 25 | . . . . . . 1 . . . 2 . . . 2 1 . . 2 1 2 . . . . . 2 . 3 3 2 4 Critical Parts Destroyed 27 | . 6 . 2 . . . . . 3 . . . . 4 . . 2 . . 4 . 1 2 . . . . . . 3 . Critical Strikes 83 | . 6 . 2 . . 1 . . 8 2 . . . 7 1 . 3 2 1 7 . 2 2 . 7 7 . 4 6 6 9 Burn 3 | . . . . . . . . . 3 . . . . . . . . . . . . . . . . . . . . . . Meltdown 17 | . . . . . . . . . . 1 . . . 1 1 . . . . . . . . . . 2 . 3 3 2 4 Destroy 27 | . . . . . . 1 . . 3 1 . . . 5 . . 3 2 1 7 . 1 2 . . . . . . 1 . Blast 15 | . . . . . . . . . . . . . . . . . . . . . . . . . 6 5 . . . . 4 Corrupt 7 | . . . . . . . . . . . . . . 1 . . . . . . . . . . 1 . . 1 3 . 1 Smash 8 | . 6 . 2 . . . . . . . . . . . . . . . . . . . . . . . . . . . . Sever 2 | . . . . . . . . . 2 . . . . . . . . . . . . . . . . . . . . . . Impale 1 | . . . . . . . . . . . . . . . . . . . . . . 1 . . . . . . . . . Detonate 3 | . . . . . . . . . . . . . . . . . . . . . . . . . . . . . . 3 . Melee Attacks 313 | . 32 . 14 . . 5 2 1 55 7 3 4 . 28 . . 27 . . 16 . 14 3 27 51 8 . 5 . 11 . Kinetic 25 | . . . . . . . . . . . . . . . . . . . . . . . . . 7 2 . 5 . 11 . Impact 53 | . 32 . 14 . . 5 2 . . . . . . . . . . . . . . . . . . . . . . . . Slashing 65 | . . . . . . . . . 55 7 3 . . . . . . . . . . . . . . . . . . . . Piercing 134 | . . . . . . . . . . . . 2 . 28 . . 7 . . 3 . 14 3 27 44 6 . . . . . Sneak Attacks 91 | . 2 . . . . . 1 1 9 1 1 2 . 8 . . 20 . . 14 . 11 . 15 5 . . 1 . . . Combat Hostiles 2 | . 1 . . . . . . . . . . . . . . . . . . . . . . . . . . 1 . . . Follow-up Attacks 2 | . . . . . . . . . . . . . . . . . . . . . . . . . 2 . . . . . . Damage Inflicted 99718 | 49 1399 497 2819 332 342 2474 750 . 2416 2017 61 . 2209 3734 1137 849 3208 1075 24 2690 882 1276 2543 2464 4207 6662 1783 4643 4815 17215 25146 Guns 17257 | 49 720 . 623 . 296 1545 249 . 1148 245 . . 173 1797 61 . 790 886 24 1225 . 407 602 . 499 . . 799 1565 3554 . Cannons 50242 | . . . 1231 . 46 273 403 . . 217 . . 296 999 314 140 . 143 . 888 228 39 236 422 2548 5043 1768 2528 1656 7253 23571 Explosions 25609 | . . 497 613 332 . 656 . . 72 1357 . . 1740 345 762 709 2418 46 . 511 654 . 1705 1071 351 1510 . 1054 1584 6047 1575 Melee 6585 | . 679 . 352 . . . 98 . 1196 198 61 . . 593 . . . . . 66 . 830 . 971 809 109 . 262 . 361 . Ramming 25 | . . . . . . . . . . . . . . . . . . . . . . . . . . . 15 . 10 . . Kinetic 21662 | 15 720 . 623 . 296 1545 249 . 848 245 . . 173 1401 61 . 790 886 24 1225 . 407 564 . 2068 1803 780 713 21 2572 3633 Thermal 42024 | 34 . . 1231 . 46 273 403 . 300 121 . . 538 999 314 140 1815 143 . 699 . 39 140 . 294 3169 508 2131 1635 7692 19360 Explosive 7358 | . . 497 613 231 . 656 . . 72 1326 . . . 159 607 709 . . . 271 . . . 665 . 414 . . 861 . 277 Electromagnetic 18638 | . . . . 101 . . . . . 127 . . 1498 582 155 . 603 46 . 429 882 . 1801 828 1288 1209 480 1617 2288 3469 1235 Impact 1129 | . 679 . 352 . . . 98 . . . . . . . . . . . . . . . . . . . . . . . . Slashing 1455 | . . . . . . . . . 1196 198 61 . . . . . . . . . . . . . . . . . . . . Piercing 3084 | . . . . . . . . . . . . . . 593 . . . . . 66 . 830 . 971 557 67 . . . . . Entropic 4343 | . . . . . . . . . . . . . . . . . . . . . . . 38 . . . . 182 . 3482 641 Highest Corruption 14 | . . . . . . . . . . . . . 5 3 4 4 4 6 . 1 1 13 4 . 11 4 . 4 . 14 4 Average Corruption 4 | . . . . . . . . . . . . . 5 1 3 4 2 3 . 1 1 3 2 . 6 3 . 2 . 9 1 Corruption Purged 46 | . . . . . . . . . . . . . . 1 . . . . . . . 31 . . . . . . . 14 . Corruption Blocked . | . . . . . . . . . . . . . . . . . . . . . . . . . . . . . . . . Effects 225 | . . . . . . . . . . . . . 1 2 28 14 3 17 . 2 3 6 . . 44 20 . 12 . 51 22 Message Errors 57 | . . . . . . . . . . . . . . . 9 5 . 4 . 2 . 2 . . 9 9 . 3 . 12 2 Matter Fused 63 | . . . . . . . . . . . . . . 1 5 6 1 6 . . 1 2 . . 12 6 . 1 . 17 5 Heat Flow Errors 26 | . . . . . . . . . . . . . . 1 2 1 . 2 . . 1 1 . . 5 2 . 2 . 6 3 Energy Discharges 21 | . . . . . . . . . . . . . . . 3 1 2 . . . . . . . 5 2 . . . 7 1 Parts Rejected 2 | . . . . . . . . . . . . . . . 1 . . . . . . 1 . . . . . . . . . Parts Fused 3 | . . . . . . . . . . . . . . . . . . 1 . . . . . . 1 1 . . . . . Data Loss (minor) 17 | . . . . . . . . . . . . . 1 . 2 . . 1 . . . . . . 3 . . 3 . 4 3 Data Loss (major) 13 | . . . . . . . . . . . . . . . 2 . . 2 . . 1 . . . 3 . . 1 . 1 3 Misfires 9 | . . . . . . . . . . . . . . . 1 . . 1 . . . . . . . . . 1 . 2 4 Alerts 4 | . . . . . . . . . . . . . . . 1 . . . . . . . . . 1 . . . . 2 . Weapon Failures 10 | . . . . . . . . . . . . . . . 2 1 . . . . . . . . 5 . . 1 . . 1 Overload Shots . | . . . . . . . . . . . . . . . . . . . . . . . . . . . . . . . . Overflow Damage 3137 | . 400 26 135 . . 16 25 . 218 99 51 . 62 123 60 60 51 14 . 57 . 74 122 102 163 190 . 310 148 285 346 Projectiles 1133 | . . . 18 . . . 25 . . . . . 15 45 . 7 . . . . . . . 11 59 188 . 283 85 105 292 Explosions 829 | . . 26 . . . 16 . . . 58 . . 47 . 60 53 51 14 . 21 . . 122 35 . 2 . 27 63 180 54 Melee 1175 | . 400 . 117 . . . . . 218 41 51 . . 78 . . . . . 36 . 74 . 56 104 . . . . . . Knockbacks 52 | . 3 . 1 . . . 1 . . . . . . . . . . . . . . . . . 13 8 7 2 . 9 8 Impact 5 | . 3 . 1 . . . 1 . . . . . . . . . . . . . . . . . . . . . . . . Kinetic 47 | . . . . . . . . . . . . . . . . . . . . . . . . . 13 8 7 2 . 9 8 Secondary . | . . . . . . . . . . . . . . . . . . . . . . . . . . . . . . . . Self-Inflicted Damage 727 | . . 69 25 34 . 39 . . 44 . . . 34 13 66 92 70 . . . 11 . 90 . . . . 17 41 . 82 Shots 32 | . . 2 1 2 . 2 . . 1 . . . 2 1 3 2 4 . . . 1 . 1 . . . . 3 6 . 1 Rammed 2 | . . . . . . . . . . . . . . . . . . . . . . . . . . . 1 . 1 . . Targets Rammed 2 | . . . . . . . . . . . . . . . . . . . . . . . . . . . 1 . 1 . . Kicked . | . . . . . . . . . . . . . . . . . . . . . . . . . . . . . . . . Crushed . | . . . . . . . . . . . . . . . . . . . . . . . . . . . . . . . . Highest Temperature 510 | . 12 18 267 . 135 63 114 . 429 497 174 . 212 510 380 104 27 221 102 300 251 151 237 134 206 204 181 181 178 178 158 Average Temperature 94 | . 4 8 75 . 61 15 35 . 156 115 73 . 68 108 71 57 19 94 40 101 139 32 84 66 62 118 62 84 99 107 98 Received Heat Transfer 2838 | . 228 . 315 . 54 378 45 . 266 90 . . 153 225 . . 27 . . 61 . . 81 9 468 71 . 16 24 302 25 Effects 23 | . . . 2 . . . . . 6 2 . . 1 4 . . . . . 3 . . . . . 5 . . . . . Shutdowns 7 | . . . . . . . . . 4 2 . . . 1 . . . . . . . . . . . . . . . . . Energy Bleed 6 | . . . . . . . . . 1 . . . 1 1 . . . . . 1 . . . . . 2 . . . . . Interference 7 | . . . 2 . . . . . . . . . . . . . . . . 2 . . . . . 3 . . . . . Matter Decay 1 | . . . . . . . . . . . . . . 1 . . . . . . . . . . . . . . . . . Short Circuit 1 | . . . . . . . . . . . . . . 1 . . . . . . . . . . . . . . . . . Damage (minor) 1 | . . . . . . . . . 1 . . . . . . . . . . . . . . . . . . . . . . Siege Activations 92 | . . . . . . . . . . . . . . . . . . . . 3 1 . 1 2 11 17 3 6 9 15 24 Total Turns 1695 | . . . . . . . . . . . . . . . . . . . . 43 8 . 7 36 176 294 63 251 156 388 273 Longest Duration 74 | . . . . . . . . . . . . . . . . . . . . 26 8 . 7 18 30 73 32 65 39 74 52 Robots Corrupted 90 | . 3 . 3 1 . . . . . . . . 2 3 1 . 1 . . 2 7 . 1 4 7 6 1 6 13 18 11 Combat Hostiles 85 | . 2 . 2 . . . . . . . . . 2 3 1 . . . . 2 7 . 1 3 7 6 1 6 13 18 11 Parts Fried 178 | . 4 . 6 1 . . . . . . . . 7 10 1 . 1 2 . 11 5 . 1 8 15 9 1 12 17 34 33 Impact Corruptions 17 | . 11 . 6 . . . . . . . . . . . . . . . . . . . . . . . . . . . . Robots Melted 18 | . . . . . . . . . . 1 . . . 1 1 . 1 . . . . . . . . 2 . 3 3 2 4 Combat Hostiles 17 | . . . . . . . . . . 1 . . . 1 1 . 1 . . . . . . . . 2 . 2 3 2 4 Parts Melted 55 | . . . . . . . . . 2 . . . . 8 4 2 4 . . 1 . . . . 1 13 . 6 6 8 . Heat Transferred 23975 | 75 . . 2257 . 74 555 703 . 837 161 . . 429 1350 372 148 1444 111 . 740 . 37 148 . 259 2739 518 1597 952 3777 4692 Parts Sabotaged 2 | . . . . . . . . . . . . . . . . . . . . . . . . . . . . . 2 . . Parts Stolen . | . . . . . . . . . . . . . . . . . . . . . . . . . . . . . . . . Parts Stripped 59 | . . . . . . . . . . . . . . . . . . . . . . . . . 18 8 . . . 33 . Power Chain Reactions 32 | . . . . . . . . . . 1 . . 3 . 1 . 14 . . 2 . . . . . 2 . 2 . 6 1 Alert | -11 -10 -10 -9 -9 -8 -8 -8 -8 -6 -6 -6 -6 -5 -5 -5 -5 -5 -4 -4 -4 -4 -4 -4 -3 -3 -3 -2 -2 -1 -1 -1 ------- Run | Yrd Mat Min Mat Min Mat Sto Rec Scr Fac Low Low Zio Pro Fac Upp Upp War Pro Fac Ext Cet Arc Hub Res Qua Sec Res Tes Acc Com Ac0 Peak Influence 1714 | 10 223 234 660 406 106 585 283 . 352 . . . . 545 . . . . 363 713 658 536 1524 1224 552 854 1029 763 1222 1714 . Initial 797 | . 6 . . 257 21 44 187 . . . . . . 56 . . . . 331 177 336 263 . 797 552 152 454 551 457 781 . Average 386 | 2 68 80 345 256 64 392 100 . 135 . . . . 232 . . . . 351 422 516 265 748 1053 198 376 646 456 757 1176 . Maximum Alert Level 5 | . 1 1 2 2 . 2 1 . 1 . . . . 2 . . . . 1 3 2 2 4 4 2 3 3 3 4 5 . Low Security (%) 30 | 100 96 87 25 18 100 17 81 . 77 . . . . 52 . . . . . 4 . 50 6 . 51 20 . . . . . Level 1 21 | . 3 12 40 44 . 21 18 . 22 . . . . 30 . . . . 100 35 8 27 11 . 47 41 . 37 . . . Level 2 20 | . . . 34 36 . 61 . . . . . . . 17 . . . . . 56 91 21 30 . 1 23 72 56 42 . . Level 3 9 | . . . . . . . . . . . . . . . . . . . . 3 . . 26 69 . 14 27 5 45 12 . Level 4 3 | . . . . . . . . . . . . . . . . . . . . . . . 24 30 . . . . 10 8 . Level 5 15 | . . . . . . . . . . . . . . . . . . . . . . . . . . . . . . 79 . High Security . | . . . . . . . . . . . . . . . . . . . . . . . . . . . . . . . . Max Security . | . . . . . . . . . . . . . . . . . . . . . . . . . . . . . . . . Squads Dispatched 95 | . 5 . 5 . . 5 . . 7 . . . 1 12 . . . . . 1 . . 11 5 7 8 5 7 6 10 . Investigation 16 | . 5 . . . . 1 . . 3 . . . . 4 . . . . . . . . . 1 . . 1 . . 1 . Extermination 25 | . . . . . . . . . 2 . . . . 3 . . . . . . . . . . 5 4 1 4 2 4 . Reinforcement 31 | . . . 5 . . . . . 2 . . . . 2 . . . . . 1 . . 7 4 2 2 3 2 . 1 . Assault 12 | . . . . . . . . . . . . . 1 . . . . . . . . . . . . 2 . 1 4 4 . Garrison 11 | . . . . . . 4 . . . . . . . 3 . . . . . . . . 4 . . . . . . . . Intercept . | . . . . . . . . . . . . . . . . . . . . . . . . . . . . . . . . Searches Triggered . | . . . . . . . . . . . . . . . . . . . . . . . . . . . . . . . . Construction Impeded 5 | . . . 1 . . . . . . . . . . 1 . . . . . . . . 2 . . 1 . . . . . Haulers Reinforced 4 | . . . . . . . . . . . . . . 1 . . . . . . . . 2 1 . . . . . . . Active Scanning Responses . | . . . . . . . . . . . . . . . . . . . . . . . . . . . . . . . . Cargo Convoy Interrupts 1 | . . . . . . . . . 1 . . . . . . . . . . . . . . . . . . . . . . Stealth | -11 -10 -10 -9 -9 -8 -8 -8 -8 -6 -6 -6 -6 -5 -5 -5 -5 -5 -4 -4 -4 -4 -4 -4 -3 -3 -3 -2 -2 -1 -1 -1 --------- Run | Yrd Mat Min Mat Min Mat Sto Rec Scr Fac Low Low Zio Pro Fac Upp Upp War Pro Fac Ext Cet Arc Hub Res Qua Sec Res Tes Acc Com Ac0 Distress Signals 51 | . 4 . 3 . . 4 . . 2 . . . . 2 . . . 1 . 2 2 . 2 4 1 2 . . 1 21 . Communications Jammed 374 | . . . . . . . . . 14 . . . . 2 . . . . . 64 7 . 24 3 13 101 15 43 28 60 . Distress Signals 357 | . . . . . . . . . 9 . . . . 2 . . . . . 64 7 . 19 3 13 101 8 43 28 60 . Times Spotted 715 | . 19 10 48 4 2 24 2 . 27 5 1 . 18 33 4 8 41 5 2 26 12 11 32 25 33 48 18 34 44 79 100 Peak Tracking Total 12 | . 5 3 5 4 1 5 1 . 4 4 2 . 10 6 2 6 12 2 1 6 5 2 10 5 4 6 4 5 9 10 5 Tactical Retreats 27 | . 1 . 3 1 . 2 . . 6 . . . 1 1 1 . . . . . . . 1 1 1 3 . 2 1 2 . Traps | -11 -10 -10 -9 -9 -8 -8 -8 -8 -6 -6 -6 -6 -5 -5 -5 -5 -5 -4 -4 -4 -4 -4 -4 -3 -3 -3 -2 -2 -1 -1 -1 ------- Run | Yrd Mat Min Mat Min Mat Sto Rec Scr Fac Low Low Zio Pro Fac Upp Upp War Pro Fac Ext Cet Arc Hub Res Qua Sec Res Tes Acc Com Ac0 Traps Triggered 18 | . 3 . . . . . . . 2 . . . . 1 . . . . . 2 . . 1 2 1 2 . . . 4 . Indirectly 4 | . . . . . . . . . . . . . . . . . . . . . . . 1 . . . . . . 3 . Trap Hack Attempts 25 | . . . . . . . . . . . . . . . . . . . . 25 . . . . . . . . . . . Triggered . | . . . . . . . . . . . . . . . . . . . . . . . . . . . . . . . . Disarmed . | . . . . . . . . . . . . . . . . . . . . . . . . . . . . . . . . Reprogrammed 1 | . . . . . . . . . . . . . . . . . . . . 1 . . . . . . . . . . . Reused 1 | . . . . . . . . . . . . . . . . . . . . 1 . . . . . . . . . . . Traps Extracted . | . . . . . . . . . . . . . . . . . . . . . . . . . . . . . . . . Installed . | . . . . . . . . . . . . . . . . . . . . . . . . . . . . . . . . Triggered 14 | . . . . . . . . . 3 1 . . . . . . 9 . . 1 . . . . . . . . . . . Machines | -11 -10 -10 -9 -9 -8 -8 -8 -8 -6 -6 -6 -6 -5 -5 -5 -5 -5 -4 -4 -4 -4 -4 -4 -3 -3 -3 -2 -2 -1 -1 -1 ---------- Run | Yrd Mat Min Mat Min Mat Sto Rec Scr Fac Low Low Zio Pro Fac Upp Upp War Pro Fac Ext Cet Arc Hub Res Qua Sec Res Tes Acc Com Ac0 Machines Disabled 97 | . . . 4 . . 1 . . 4 5 . . 2 12 . . 1 . . 3 . 2 12 3 5 15 . 13 3 3 9 Max in Single Turn 10 | . . . 1 . . 1 . . 1 2 . . 2 1 . . 1 . . 1 . 1 10 1 1 1 . 2 1 1 1 Garrison Access 6 | . . . . . . . . . 1 . . . . 1 . . . . . . . . . . . 1 . . 3 . . Network Hub 1 | . . . . . . . . . . . . . . . . . . . . . . . 1 . . . . . . . . Machines Repaired . | . . . . . . . . . . . . . . . . . . . . . . . . . . . . . . . . Machines Dismantled . | . . . . . . . . . . . . . . . . . . . . . . . . . . . . . . . . Machines Sabotaged . | . . . . . . . . . . . . . . . . . . . . . . . . . . . . . . . . Overloaded Fab Kills . | . . . . . . . . . . . . . . . . . . . . . . . . . . . . . . . . Hacking | -11 -10 -10 -9 -9 -8 -8 -8 -8 -6 -6 -6 -6 -5 -5 -5 -5 -5 -4 -4 -4 -4 -4 -4 -3 -3 -3 -2 -2 -1 -1 -1 --------- Run | Yrd Mat Min Mat Min Mat Sto Rec Scr Fac Low Low Zio Pro Fac Upp Upp War Pro Fac Ext Cet Arc Hub Res Qua Sec Res Tes Acc Com Ac0 Machines Accessed 126 | . 8 . 8 . . 5 13 5 11 2 . . . 7 1 1 9 . 1 7 . . 4 3 8 9 7 5 7 5 . Terminals 77 | . 7 . 7 . . 4 6 . 6 . . . . 1 1 . . . 1 7 . . 3 2 6 8 5 5 4 4 . Fabricators 4 | . . . . . . . . . 1 . . . . 2 . . . . . . . . . . . . 1 . . . . Repair Stations 2 | . . . . . . . . . 1 . . . . . . . . . . . . . . . 1 . . . . . . Recycling Units 15 | . 1 . 1 . . . 7 . 2 . . . . 2 . . . . . . . . . . . . 1 . . 1 . Scanalyzers 3 | . . . . . . . . . . . . . . 1 . . . . . . . . . 1 1 . . . . . . Garrison Access 8 | . . . . . . 1 . . 1 . . . . 1 . . . . . . . . 1 . . 1 . . 3 . . Total Hacks 333 | . 20 . 21 . . 17 24 28 28 2 . . . 21 1 1 16 . 1 16 . . 7 8 25 23 28 23 12 11 . Successful 180 | . 6 . 10 . . 3 16 28 15 2 . . . 11 1 1 16 . 1 1 . . 3 5 15 12 12 10 8 4 . Failed 153 | . 14 . 11 . . 14 8 . 13 . . . . 10 . . . . . 15 . . 4 3 10 11 16 13 4 7 . Catastrophic 29 | . 2 . 1 . . . 4 . 4 . . . . . . . . . . 5 . . 3 2 2 1 1 1 2 1 . Database Lockouts . | . . . . . . . . . . . . . . . . . . . . . . . . . . . . . . . . Manual 186 | . 14 . 17 . . 10 22 . 21 . . 1 . 12 1 . . . . 1 1 . 4 2 17 14 25 11 5 8 . Terminals 231 | . 19 . 20 . . 13 17 . 17 . . . . 11 1 . . . 1 16 . . 6 3 21 22 24 23 8 9 . Fabricators 7 | . . . . . . . . . 1 . . . . 4 . . . . . . . . . . . . 2 . . . . Repair Stations 3 | . . . . . . . . . 2 . . . . . . . . . . . . . . . 1 . . . . . . Recycling Units 22 | . 1 . 1 . . . 7 . 7 . . . . 2 . . . . . . . . . . . . 2 . . 2 . Scanalyzers 11 | . . . . . . . . . . . . . . 3 . . . . . . . . . 5 3 . . . . . . Garrison Access 12 | . . . . . . 4 . . 1 . . . . 1 . . . . . . . . 1 . . 1 . . 4 . . Terminal Hacks 103 | . 2 . 6 . . 1 6 28 5 2 . . . 2 1 1 16 . 1 1 . . 1 1 7 6 4 6 3 3 . Record 35 | . . . . . . . . 23 1 . . . . . 1 . 10 . . . . . . . . . . . . . . Robot Analysis 14 | . . . 4 . . . 3 5 . . . . . 1 . . . . . . . . . . . . 1 . . . . Prototype ID Bank 5 | . . . . . . . . . . . . . . . . . 5 . . . . . . . . . . . . . . Open Door 12 | . . . . . . 1 . . . 2 . . . . . 1 1 . 1 1 . . . . . 3 . . 1 1 . Level Access Points 1 | . . . . . . . . . . . . . . . . . . . . . . . . . . . . 1 . . . Branch Access Points 3 | . . . 1 . . . . . 1 . . . . . . . . . . . . . . . . . 1 . . . . Machine Index 1 | . . . . . . . . . . . . . . . . . . . . . . . . . . . . . 1 . . Terminal Index 5 | . 1 . . . . . . . 1 . . . . . . . . . . . . . . . 1 . 1 . . 1 . Scanalyzer Index 1 | . . . . . . . . . . . . . . . . . . . . . . . . . 1 . . . . . . Alert Level 3 | . . . . . . . 1 . . . . . . . . . . . . . . . . . . 1 . . 1 . . Unreport Threat 12 | . . . . . . . 2 . 1 . . . . . . . . . . . . . 1 . 4 2 . 2 . . . Locate Traps 7 | . 1 . 1 . . . . . 1 . . . . . . . . . . . . . . 1 . . . 2 . 1 . Recall Extermination 2 | . . . . . . . . . . . . . . . . . . . . . . . . . . . 1 1 . . . Hauler Manifests 1 | . . . . . . . . . . . . . . 1 . . . . . . . . . . . . . . . . . Zone Layout 1 | . . . . . . . . . . . . . . . . . . . . . . . . . 1 . . . . . . Fabricator Hacks 2 | . . . . . . . . . . . . . . 2 . . . . . . . . . . . . . . . . . Load Schematic 1 | . . . . . . . . . . . . . . 1 . . . . . . . . . . . . . . . . . Build 1 | . . . . . . . . . . . . . . 1 . . . . . . . . . . . . . . . . . Repair Station Hacks 1 | . . . . . . . . . 1 . . . . . . . . . . . . . . . . . . . . . . Scan Component 1 | . . . . . . . . . 1 . . . . . . . . . . . . . . . . . . . . . . Recycling Unit Hacks . | . . . . . . . . . . . . . . . . . . . . . . . . . . . . . . . . Scanalyzer 7 | . . . . . . . . . . . . . . 1 . . . . . . . . . 4 2 . . . . . . Insert Component 7 | . . . . . . . . . . . . . . 1 . . . . . . . . . 4 2 . . . . . . Garrison Access Hacks 6 | . . . . . . . . . 1 . . . . 1 . . . . . . . . . . . 1 . . 3 . . Seal Access 6 | . . . . . . . . . 1 . . . . 1 . . . . . . . . . . . 1 . . 3 . . Unauthorized Hacks 61 | . 4 . 4 . . 2 10 . 8 . . . . 5 . . . . . . . . 2 . 6 5 8 4 2 1 . Terminals 41 | . 3 . 3 . . 2 3 . 4 . . . . 3 . . . . . . . . 2 . 5 5 5 4 2 . . Track 6 | . . . . . . . . . . . . . . 1 . . . . . . . . 1 . 1 2 . 1 . . . Assimilate 5 | . . . . . . . . . 1 . . . . . . . . . . . . . . . 1 . 2 1 . . . Botnet 26 | . 2 . 3 . . 2 3 . 2 . . . . 1 . . . . . . . . 1 . 2 3 3 2 2 . . Operators 4 | . 1 . . . . . . . 1 . . . . 1 . . . . . . . . . . 1 . . . . . . Fabricators 3 | . . . . . . . . . 1 . . . . . . . . . . . . . . . . . 2 . . . . Liberate 2 | . . . . . . . . . 1 . . . . . . . . . . . . . . . . . 1 . . . . Haulers 1 | . . . . . . . . . . . . . . . . . . . . . . . . . . . 1 . . . . Repair Stations 7 | . . . . . . . . . 2 . . . . 2 . . . . . . . . . . 1 . 1 . . 1 . Mechanics 1 | . . . . . . . . . . . . . . . . . . . . . . . . . 1 . . . . . . Recycling Units 10 | . 1 . 1 . . . 7 . 1 . . . . . . . . . . . . . . . . . . . . . . Recyclers 3 | . 1 . 1 . . . . . 1 . . . . . . . . . . . . . . . . . . . . . . Tunnel 7 | . . . . . . . 7 . . . . . . . . . . . . . . . . . . . . . . . . Fedlink 2 | . . . . . . . . . 1 . . . . 1 . . . . . . . . . . . . . . . . . Scrapoids 4 | . . . . . . . . . 1 . . . . 1 . . . . . . . . . . . . 1 . . 1 . Scanalyzers . | . . . . . . . . . . . . . . . . . . . . . . . . . . . . . . . . Garrison Access . | . . . . . . . . . . . . . . . . . . . . . . . . . . . . . . . . Data Cores Recovered 3 | . . . . . . 1 . . . . . . . 1 . . . . . . . . . . . . . . . 1 . Used 1 | . . . . . . . . . . . . . . 1 . . . . . . . . . . . . . . . . . Hacking Detections 88 | . 7 . 8 . . 5 6 . 9 . . . . 5 1 . . . 1 7 . . 4 3 7 5 6 5 4 5 . Full Trace Events 6 | . 1 . 1 . . 2 1 . . . . . . 1 . . . . . . . . . . . . . . . . . Feedback Events . | . . . . . . . . . . . . . . . . . . . . . . . . . . . . . . . . Feedback Blocked . | . . . . . . . . . . . . . . . . . . . . . . . . . . . . . . . . Robot Schematics Acquired 6 | . . . . . . . . . . . . 4 . . . . . . . . . . . . 2 . . . . . . Robots Built . | . . . . . . . . . . . . . . . . . . . . . . . . . . . . . . . . Authchips . | . . . . . . . . . . . . . . . . . . . . . . . . . . . . . . . . Time 222 | . . . . . . . . . . . . . . 222 . . . . . . . . . . . . . . . . . Total Robot Build Rating . | . . . . . . . . . . . . . . . . . . . . . . . . . . . . . . . . Part Schematics Acquired 14 | . . . . . . . . . . . . 13 . . . . . . . . . . . . 1 . . . . . . Parts Built . | . . . . . . . . . . . . . . . . . . . . . . . . . . . . . . . . Authchips . | . . . . . . . . . . . . . . . . . . . . . . . . . . . . . . . . Time . | . . . . . . . . . . . . . . . . . . . . . . . . . . . . . . . . Total Part Build Rating . | . . . . . . . . . . . . . . . . . . . . . . . . . . . . . . . . Parts Repaired . | . . . . . . . . . . . . . . . . . . . . . . . . . . . . . . . . Time . | . . . . . . . . . . . . . . . . . . . . . . . . . . . . . . . . Parts Recycled . | . . . . . . . . . . . . . . . . . . . . . . . . . . . . . . . . Recycled Matter . | . . . . . . . . . . . . . . . . . . . . . . . . . . . . . . . . Retrieved Matter . | . . . . . . . . . . . . . . . . . . . . . . . . . . . . . . . . Retrieved Components . | . . . . . . . . . . . . . . . . . . . . . . . . . . . . . . . . Parts Scanalyzed . | . . . . . . . . . . . . . . . . . . . . . . . . . . . . . . . . Part Schematics Acquired . | . . . . . . . . . . . . . . . . . . . . . . . . . . . . . . . . Parts Damaged . | . . . . . . . . . . . . . . . . . . . . . . . . . . . . . . . . Bothacking | -11 -10 -10 -9 -9 -8 -8 -8 -8 -6 -6 -6 -6 -5 -5 -5 -5 -5 -4 -4 -4 -4 -4 -4 -3 -3 -3 -2 -2 -1 -1 -1 ------------ Run | Yrd Mat Min Mat Min Mat Sto Rec Scr Fac Low Low Zio Pro Fac Upp Upp War Pro Fac Ext Cet Arc Hub Res Qua Sec Res Tes Acc Com Ac0 Used RIF Installer . | . . . . . . . . . . . . . . . . . . . . . . . . . . . . . . . . Robots Hacked 6 | . . . . . . . . 1 . . . 1 . . . . 3 . . 1 . . . . . . . . . . . Non-combat . | . . . . . . . . . . . . . . . . . . . . . . . . . . . . . . . . Combat 6 | . . . . . . . . 1 . . . 1 . . . . 3 . . 1 . . . . . . . . . . . Robot Hacks Applied 7 | . . . . . . . . 1 . . . 2 . . . . 3 . . 1 . . . . . . . . . . . parse_system 7 | . . . . . . . . 1 . . . 2 . . . . 3 . . 1 . . . . . . . . . . . Relay Couplers Released 4 | . . . . . . . . . 4 . . . . . . . . . . . . . . . . . . . . . . Programmers 4 | . . . . . . . . . 4 . . . . . . . . . . . . . . . . . . . . . . Fabnet Peak Effective % . | . . . . . . . . . . . . . . . . . . . . . . . . . . . . . . . . Robots Rewired 15 | . . . . . . . . . . . . . . . . . 5 . . 10 . . . . . . . . . . . Allies Hacked . | . . . . . . . . . . . . . . . . . . . . . . . . . . . . . . . . Hacks Repelled . | . . . . . . . . . . . . . . . . . . . . . . . . . . . . . . . . Allies | -11 -10 -10 -9 -9 -8 -8 -8 -8 -6 -6 -6 -6 -5 -5 -5 -5 -5 -4 -4 -4 -4 -4 -4 -3 -3 -3 -2 -2 -1 -1 -1 -------- Run | Yrd Mat Min Mat Min Mat Sto Rec Scr Fac Low Low Zio Pro Fac Upp Upp War Pro Fac Ext Cet Arc Hub Res Qua Sec Res Tes Acc Com Ac0 Total Allies 59 | . . 4 . . . . . . 11 . . 3 . 5 2 . 5 . 1 11 5 1 . . . . 6 . . 5 . Largest Group 8 | . . 4 4 . . . . . 6 . . 3 3 5 2 2 7 1 1 8 7 7 5 . . . 5 . . 5 . Highest-Rated Group 569 | . . 71 71 . . . . . 238 . . 89 89 241 192 192 456 65 26 419 569 569 514 . . . 326 . . 320 . Highest-Rated Ally 159 | . . 31 31 . . . . . 50 . . 31 31 53 96 96 96 65 26 159 146 137 137 . . . 67 . . 64 . Total Orders 82 | . . . . . . . . . 8 . . 1 . 13 6 . . . 1 1 11 5 16 1 . 10 . . . 9 . STAY 24 | . . . . . . . . . 5 . . . . 2 . . . . . . 8 2 3 . . 3 . . . 1 . ROAM 12 | . . . . . . . . . 1 . . . . . . . . . . . . . 4 . . 4 . . . 3 . FOLLOW 9 | . . . . . . . . . 2 . . . . 1 . . . . . . 3 2 . . . . . . . 1 . EXPLORE 11 | . . . . . . . . . . . . . . 1 3 . . . . . . . 4 1 . . . . . 2 . RETURN 26 | . . . . . . . . . . . . 1 . 9 3 . . . 1 1 . 1 5 . . 3 . . . 2 . Ally Attacks 644 | . . . 18 . . . . . 73 . . . 16 32 . 11 87 . . 126 11 39 89 . . . 85 . . 57 . Total Damage 22007 | . . . 257 . . . . . 1866 . . . 271 922 . 124 3929 . . 4584 541 1422 4987 . . . 2241 . . 863 . Kills 116 | . . . 2 . . . . . 15 . . . 1 8 . 1 18 . . 20 3 4 31 . . . 11 . . 2 . Allies Corrupted 4 | . . . . . . . . . . . . . . . . . 1 . . . . . 1 . . . . . . 2 . Allies Melted 1 | . . . . . . . . . . . . . . . . . 1 . . . . . . . . . . . . . . Intel | -11 -10 -10 -9 -9 -8 -8 -8 -8 -6 -6 -6 -6 -5 -5 -5 -5 -5 -4 -4 -4 -4 -4 -4 -3 -3 -3 -2 -2 -1 -1 -1 ------- Run | Yrd Mat Min Mat Min Mat Sto Rec Scr Fac Low Low Zio Pro Fac Upp Upp War Pro Fac Ext Cet Arc Hub Res Qua Sec Res Tes Acc Com Ac0 Robot Analysis Total 14 | . . . 4 . . . 3 5 . . . . . 1 . . . . . . . . . . . . 1 . . . . Derelict Logs Recovered 11 | . . 2 . 1 . . . . . 1 . . 2 . 3 1 . 1 . . . . . . . . . . . . . Drone Launches 28 | . . . . . . . . . . . . 1 . 8 3 . . . 1 1 . 1 6 1 . 2 . . . 4 . Drone Recoveries 23 | . . . . . . . . . . . . 1 . 8 3 . . . 1 1 . 1 5 . . 1 . . . 2 . Exploration | -11 -10 -10 -9 -9 -8 -8 -8 -8 -6 -6 -6 -6 -5 -5 -5 -5 -5 -4 -4 -4 -4 -4 -4 -3 -3 -3 -2 -2 -1 -1 -1 ------------- Run | Yrd Mat Min Mat Min Mat Sto Rec Scr Fac Low Low Zio Pro Fac Upp Upp War Pro Fac Ext Cet Arc Hub Res Qua Sec Res Tes Acc Com Ac0 Turns Passed 47167 | 69 1659 888 1906 986 110 1029 1574 5588 1816 1507 746 2074 1011 1404 1362 579 1283 700 217 1302 376 1628 436 811 1929 2497 733 1696 1528 5783 1940 Spaces Moved 28340 | 51 1000 624 1033 655 41 463 1076 4107 1085 1104 576 1696 737 894 996 470 996 498 177 842 258 1252 292 511 843 919 311 597 736 2781 719 Core 17 | 10 . . . . . . . . . . . . . . . . . . . . . . . . . . . . . . 7 Treads 6367 | . . . . . . . . . . . . . . . . . . . . . . 76 . 1 234 919 311 597 736 2781 712 Legs . | . . . . . . . . . . . . . . . . . . . . . . . . . . . . . . . . Wheels 21956 | 41 1000 624 1033 655 41 463 1076 4107 1085 1104 576 1696 737 894 996 470 996 498 177 842 258 1176 292 510 609 . . . . . . Hover . | . . . . . . . . . . . . . . . . . . . . . . . . . . . . . . . . Flight . | . . . . . . . . . . . . . . . . . . . . . . . . . . . . . . . . Fastest Speed 50 | 50 100 135 123 145 135 135 135 116 110 110 110 120 110 90 100 100 90 100 100 100 100 100 100 100 116 146 158 153 158 158 50 Average Speed 131 | 90 131 135 135 145 141 151 135 134 122 119 119 120 119 98 100 100 102 107 100 108 111 111 105 112 147 183 165 158 158 163 158 Slowest Speed 250 | 100 175 135 145 145 230 190 140 190 220 120 120 120 120 130 100 100 110 110 110 150 150 240 110 240 240 227 166 166 158 250 160 Overloaded Moves . | . . . . . . . . . . . . . . . . . . . . . . . . . . . . . . . . Propulsion Burnouts . | . . . . . . . . . . . . . . . . . . . . . . . . . . . . . . . . Robots Hopped . | . . . . . . . . . . . . . . . . . . . . . . . . . . . . . . . . Cave-ins Triggered . | . . . . . . . . . . . . . . . . . . . . . . . . . . . . . . . . Teleports 2 | . . . . . . . . . . . . . . . . . . . . . . . . . . . . . . 1 1 Exploration Rate (%) 61 | 4 96 97 82 99 6 73 97 94 21 72 45 87 70 21 85 63 93 56 6 87 59 98 47 14 86 64 9 84 29 86 41 Regions Visited 31 Branch Regions 22 Pre-discovered Areas 10 | . . 1 . 1 . . 7 . . . . . . . 1 . . . . . . . . . . . . . . . . Known Exits Taken 22 | . 1 1 1 1 1 1 1 1 1 . . . . 1 1 1 . 1 1 1 . . 1 1 1 1 1 1 1 . . Unknown Exits Taken 9 | 1 . . . . . . . . . 1 1 1 1 . . . 1 . . . 1 1 . . . . . . . 1 . Scrap Searched 22 | . . 1 . 2 . . . 7 . 2 1 2 2 . 2 1 . 2 . . . . . . . . . . . . . Spaces Dug 536 | . 6 9 3 . . 13 1 . 32 11 8 1 19 44 33 7 5 10 2 1 . 1 7 11 40 52 15 46 42 37 80 Terrain Destroyed 2207 | . 6 68 60 26 . 58 1 . 67 109 14 1 35 105 191 103 52 60 6 56 . 7 226 84 67 164 30 122 68 94 327 Melee 103 | . 6 . 3 . . 5 1 . 26 4 2 1 . 15 . . 5 . . 1 . . 3 11 19 1 . . . . . Projectile 944 | . . . . . . . . . 16 23 12 . 27 72 70 32 19 60 6 36 . 7 28 . 48 95 30 102 60 54 147 AOE 1159 | . . 68 57 26 . 53 . . 25 82 . . 8 18 121 71 28 . . 19 . . 195 73 . 68 . 20 8 39 180 Terrain Rammed . | . . . . . . . . . . . . . . . . . . . . . . . . . . . . . . . . Walls Destroyed . | . . . . . . . . . . . . . . . . . . . . . . . . . . . . . . . . Machines Disabled . | . . . . . . . . . . . . . . . . . . . . . . . . . . . . . . . . Actions | -11 -10 -10 -9 -9 -8 -8 -8 -8 -6 -6 -6 -6 -5 -5 -5 -5 -5 -4 -4 -4 -4 -4 -4 -3 -3 -3 -2 -2 -1 -1 -1 --------- Run | Yrd Mat Min Mat Min Mat Sto Rec Scr Fac Low Low Zio Pro Fac Upp Upp War Pro Fac Ext Cet Arc Hub Res Qua Sec Res Tes Acc Com Ac0 Total 35517 | 64 1216 659 1350 679 71 640 1135 4185 1412 1217 618 1728 808 1243 1243 535 1208 598 212 1142 331 1460 371 662 1284 1461 456 1141 1075 3914 1399 Wait 2908 | . 86 21 137 7 . 63 16 26 103 38 15 21 16 155 116 10 115 26 19 140 28 87 26 23 176 203 73 298 151 584 129 Move 28308 | 50 999 623 1032 654 40 462 1075 4106 1084 1103 575 1695 736 893 995 469 995 497 176 841 257 1251 291 510 842 918 310 596 735 2780 718 Hop . | . . . . . . . . . . . . . . . . . . . . . . . . . . . . . . . . Pick Up 281 | 4 25 1 16 1 5 4 3 15 29 . 3 1 2 19 2 2 5 2 5 1 8 27 2 12 14 18 2 3 4 34 12 Fast Attach 190 | 7 . . 5 . . . 1 5 11 3 1 1 2 2 1 1 6 . . 4 3 14 2 10 19 31 1 20 1 36 3 Attach 152 | . 3 . 3 . 4 6 2 1 19 . 1 . 1 6 . . 3 . 2 1 5 6 1 7 14 14 1 5 4 31 12 Detach 111 | . 1 . 2 . . 1 1 3 6 . 1 . 1 2 . . 4 . . 5 2 6 2 3 13 12 1 5 . 34 6 Swap 631 | . 21 7 33 7 5 24 6 6 32 19 2 4 14 38 24 8 13 12 4 31 3 7 12 23 48 65 10 32 23 48 50 Drop 367 | . 7 . 23 1 5 7 5 22 25 5 4 2 1 18 2 3 11 2 3 5 8 33 3 18 29 33 4 22 2 56 8 Fire 2192 | 3 42 7 85 9 12 68 23 . 48 42 12 . 35 82 102 42 29 59 3 61 17 15 29 21 80 159 53 155 154 284 461 Melee 311 | . 32 . 14 . . 5 2 1 55 7 3 4 . 28 . . 27 . . 16 . 14 3 27 49 8 . 5 . 11 . Ram . | . . . . . . . . . . . . . . . . . . . . . . . . . . . . . . . . Kick . | . . . . . . . . . . . . . . . . . . . . . . . . . . . . . . . . Crush 2 | . . . . . . . . . . . . . . . . . . . . . . . . . . . 1 . 1 . . Escape Stasis 16 | . . . . . . . . . . . . . . . . . . . . 8 . . . 8 . . . . . . . Rewire 22 | . . . . . . . 1 . . . . . . . 1 . . . . 4 . . . . . . . . . 16 . Trap 25 | . . . . . . . . . . . . . . . . . . . . 25 . . . . . . . . . . . Miscellaneous 1 | . . . . . . . . . . . 1 . . . . . . . . . . . . . . . . . . . . Route ------- -11/Scrapyard -10/Materials (discovered 5 exits: *Mat x3 / *Min x2) -10/Mines (discovered 3 exits: *Mat x2 / [*Exi]) -9/Materials (discovered 3 exits: *Mat x2 / *Min) -9/Mines (discovered 2 exits: *Mat x2) -8/Materials -8/Storage (discovered 2 exits: *Fac / *Rec) -8/Recycling (discovered 2 exits: *Fac / *Scr) -8/Scraptown (discovered 2 exits: *Fac x2) -6/Factory (discovered 3 exits: *Fac / *Low x2) -6/Lower Caves -6/Lower Caves -6/Zion -5/Proximity Caves -5/Factory (discovered 3 exits: Fac / *Upp x2) -5/Upper Caves -5/Upper Caves -5/Warlord -4/Proximity Caves -4/Factory (discovered 2 exits: *Res / *Ext) -4/Extension (discovered 3 exits: *Res x2 / *Cet) -4/Cetus (discovered 2 exits: *Res / [*Arc]) -4/Archives (discovered 3 exits: *Res / *Hub x2) -4/Hub_04(d) -3/Research (discovered 2 exits: *Res / *Qua) -3/Quarantine -3/Section 7 -2/Research (discovered 2 exits: *Tes x2) -2/Testing -1/Access -1/Command (discovered 3 exits: [*Sur x2] / [*Ac0]) -1/Access_0 Near Former Tau Ceti IV History --------- Turn | Location | Event 38 | -11/Scrapyard | Discovered new exit (range 13) 70 | -11/Scrapyard | Entered Materials 302 | -10/Materials | Build established: Mutant 411 | -10/Materials | Discovered new exit (range 16) 581 | -10/Materials | Discovered new exit (range 8) 828 | -10/Materials | Discovered new exit (range 15) 891 | -10/Materials | Core integrity fell below 50% 992 | -10/Materials | Identified exit to Materials 1155 | -10/Materials | Discovered exit to Materials (range 6) 1412 | -10/Materials | Discovered new exit (range 12) 1448 | -10/Materials | Identified exit to Mines 1729 | -10/Materials | Entered Mines 1730 | -10/Mines | Assembled infested the area 1783 | -10/Mines | Met 8R-AWN 1865 | -10/Mines | Learned Materials trap positions 1879 | -10/Mines | Discovered new exit (range 5) 1924 | -10/Mines | Found a hidden stash of uninstalled traps 1988 | -10/Mines | Escorted by a lone wolf Derelict 2008 | -10/Mines | Learned location of Storage (-8) 2066 | -10/Mines | Received a Rocket Launcher from a helpful Derelict 2234 | -10/Mines | Discovered exit to Materials (range 5) 2245 | -10/Mines | Assisted by bots powering up and referring to "LRC-V3" 2284 | -10/Mines | Learned Materials security intel 2562 | -10/Mines | Discovered exit to Materials (range 7) 2617 | -10/Mines | Entered Materials 2617 | -9/Materials | Accompanied by 4 allies 2617 | -9/Materials | Evolved 2 slots: Propulsion x1, Utility x1 2618 | -9/Materials | Loaded intel: 19 trap records 3003 | -9/Materials | Discovered new exit (range 11) 3450 | -9/Materials | Discovered new exit (range 16) 3510 | -9/Materials | Identified exit to Materials 4025 | -9/Materials | Discovered exit to Materials (range 15) 4198 | -9/Materials | Build established: Scavenger-Mutant 4323 | -9/Materials | Identified exit to Mines 4523 | -9/Materials | Entered Mines 4599 | -9/Mines | Met a Derelict bent on vengeance 4632 | -9/Mines | Discovered exit to Materials (range 15) 4659 | -9/Mines | YI-UF0 nonchalantly dropped a Grenade Launcher on the ground 4687 | -9/Mines | Destroyed YI-UF0 4705 | -9/Mines | Found Corrupted Prototype Storage 4937 | -9/Mines | Learned location of Recycling (-8) 5009 | -9/Mines | Discovered exit to Materials (range 9) 5509 | -9/Mines | Entered Materials 5509 | -8/Materials | Evolved 2 slots: Utility x1, Weapon x1 5563 | -8/Materials | Discovered new exit (range 13) 5610 | -8/Materials | Identified exit to Storage 5619 | -8/Materials | Entered Storage 5687 | -8/Storage | Garrison activated, responded to threat 5841 | -8/Storage | Garrison activated, responded to threat 6207 | -8/Storage | Build established: Scavenger-Tank 6250 | -8/Storage | Discovered new exit (range 5) 6256 | -8/Storage | Identified exit to Factory 6642 | -8/Storage | Used back door to open Recycling access 6642 | -8/Storage | Discovered new exit (range 5) 6646 | -8/Storage | Identified exit to Recycling 6648 | -8/Storage | Entered Recycling 7742 | -8/Recycling | Discovered new exit (range 8) 8113 | -8/Recycling | Build established: Scavenger-Skirmisher 8188 | -8/Recycling | Scanned before Scraplab entrance 8209 | -8/Recycling | Entered Scraplab 8219 | -8/Recycling | Discovered new exit (range 3) 8221 | -8/Recycling | Identified exit to Scraptown 8222 | -8/Recycling | Entered Scraptown 8516 | -8/Scraptown | Visited Bundlers 8634 | -8/Scraptown | Visited SPCMW 8665 | -8/Scraptown | Visited The Evicted 8694 | -8/Scraptown | Build established: Scavenger-Mutant 8846 | -8/Scraptown | Visited Assassins FH 9204 | -8/Scraptown | Visited Awakened 9263 | -8/Scraptown | Visited Cave Peace 9342 | -8/Scraptown | Discovered new exit (range 11) 9560 | -8/Scraptown | Visited UFD Registry 9560 | -8/Scraptown | Registered with UFD as "Flakshell" 9619 | -8/Scraptown | Visited Scrapoid Research Area 9694 | -8/Scraptown | Visited Scrapoid Pod Storage 9719 | -8/Scraptown | Visited LU-1G1's Boring Crew 9962 | -8/Scraptown | Visited Analyses Database 9993 | -8/Scraptown | Visited Infowarlord's Domain 10081 | -8/Scraptown | Visited Junk Repository 10115 | -8/Scraptown | Visited Modified Component R&D 10170 | -8/Scraptown | Visited Botcube Research 10207 | -8/Scraptown | Visited Chapter 10 10274 | -8/Scraptown | Visited Derelict Rescue Squad 10370 | -8/Scraptown | Discovered new exit (range 5) 11338 | -8/Scraptown | Found Scrapoid Pod 12239 | -8/Scraptown | Visited TADAMA 12521 | -8/Scraptown | Found Lrg. Botcube 12619 | -8/Scraptown | Found Exp. Sensor Array 12698 | -8/Scraptown | Found DRS Beacon 12804 | -8/Scraptown | Build established: Mutant 13297 | -8/Scraptown | Identified exit to Factory 13327 | -8/Scraptown | Found Scrap Suit 13810 | -8/Scraptown | Entered Factory 13810 | -6/Factory | Evolved 4 slots: Power x1, Utility x3 14285 | -6/Factory | Lost 12 parts (3p4n3u2w) 14292 | -6/Factory | Scrapoid Pod released 06F06-D (x5) 14626 | -6/Factory | Identified exit to Lower Caves 14652 | -6/Factory | Found Scrap Suit 14699 | -6/Factory | Discovered new exit (range 4) 14750 | -6/Factory | Found Prototype Launcher 14876 | -6/Factory | Spotted B-75 Beast 14977 | -6/Factory | Cargo convoy interrupted 15120 | -6/Factory | Scrapoid reinforcements arrived 15473 | -6/Factory | Found Hvy. Insulated Plating 15494 | -6/Factory | Build established: Scrapper 15626 | -6/Factory | Entered Lower Caves 15707 | -6/Lower Caves | Learned Factory interactive machine intel 15865 | -6/Lower Caves | Attracted the attention of an 0b10 checkpoint 15956 | -6/Lower Caves | Encountered a Warlord checkpoint 16168 | -6/Lower Caves | Build established: Scavenger-Scrapper 16402 | -6/Lower Caves | Attracted the attention of an 0b10 base 16564 | -6/Lower Caves | Discovered new exit (range 4) 16578 | -6/Lower Caves | Found Prototype Device 16578 | -6/Lower Caves | Identified Heart of Steel 16608 | -6/Lower Caves | Murdered Warlord Statue 17133 | -6/Lower Caves | Entered another Lower Caves area 17245 | -6/Lower Caves | Activated DRS Beacon 17470 | -6/Lower Caves | Encountered a Warlord checkpoint 17725 | -6/Lower Caves | Discovered new exit (range 3) 17879 | -6/Lower Caves | Entered Zion 17955 | -6/Zion | Discovered new exit (range 15) 18041 | -6/Zion | Found CR-A16's Pointy Stick 18492 | -6/Zion | Turned away by Imprinter 18671 | -6/Zion | Given the Hacking Drone Bay 18671 | -6/Zion | Found Prototype Device 18672 | -6/Zion | Identified Hacking Drone Bay 18750 | -6/Zion | Gained Derelict followers 18831 | -6/Zion | Received a hallucinogenic algorithm 19011 | -6/Zion | Given A8's code to call for help 19953 | -6/Zion | Entered Proximity Caves 19953 | -5/Proximity Caves | Accompanied by 3 allies 19959 | -5/Proximity Caves | Learned 4 Factory zone layouts 19975 | -5/Proximity Caves | Learned 12 Factory zone layouts 20250 | -5/Proximity Caves | Attracted the attention of an 0b10 outpost 20289 | -5/Proximity Caves | Destroyed 9 combat bots 20376 | -5/Proximity Caves | Lost 3 allies 20580 | -5/Proximity Caves | Discovered new exit (range 15) 20829 | -5/Proximity Caves | Core integrity fell below 50% 20958 | -5/Proximity Caves | Identified YI-UF0's Bottomless Matter Pit 20959 | -5/Proximity Caves | Identified Scatter Rocket Array 20964 | -5/Proximity Caves | Entered Factory 20964 | -5/Factory | Evolved 2 slots: Propulsion x1, Utility x1 20965 | -5/Factory | Identified exit to Factory 20966 | -5/Factory | Loaded intel: 52 interactive machine locations 21297 | -5/Factory | Garrison activated, responded to threat 21319 | -5/Factory | Identified exit to Upper Caves 22091 | -5/Factory | Scrapoid reinforcements arrived 22169 | -5/Factory | Found Scrap Suit 22368 | -5/Factory | Entered Upper Caves 22456 | -5/Upper Caves | Found DCF Scrap (13 items) 22612 | -5/Upper Caves | Spotted B-75 Beast 22921 | -5/Upper Caves | Identified exit to Upper Caves 23390 | -5/Upper Caves | Encountered a Warlord checkpoint 23604 | -5/Upper Caves | Enhanced Grunt warped into view, answering call for help 23609 | -5/Upper Caves | Enhanced Grunt warped into view, answering call for help 23730 | -5/Upper Caves | Entered another Upper Caves area 23730 | -5/Upper Caves | Accompanied by 2 allies 23731 | -5/Upper Caves | Identified exit to Warlord 23732 | -5/Upper Caves | Learned 4 Factory zone layouts 23900 | -5/Upper Caves | Destroyed 8 combat bots 24309 | -5/Upper Caves | Entered Warlord 24309 | -5/Warlord | Accompanied by 2 allies 24339 | -5/Warlord | Discovered new exit (range 8) 24390 | -5/Warlord | System corruption cleaned by Quarantine Array 24805 | -5/Warlord | Visited the Vortex Lab 24812 | -5/Warlord | Found Prototype Energy Gun 24813 | -5/Warlord | Identified Vortex Shotgun 24818 | -5/Warlord | Found Prototype Energy Gun 24818 | -5/Warlord | Identified Vortex Rail 24821 | -5/Warlord | Warlord's base attacked by MAIN.C 24822 | -5/Warlord | Found Prototype Launcher 24822 | -5/Warlord | Identified Vortex Catalyst Activator 24831 | -5/Warlord | Found Vortex Rail 24909 | -5/Warlord | Rebuked by Warlord 24942 | -5/Warlord | Found Prototype Device 24942 | -5/Warlord | Identified Exp. Phase Shifter 24951 | -5/Warlord | Found Prototype Reactor 24951 | -5/Warlord | Identified Vortex Chain Reactor 24960 | -5/Warlord | Found Prototype Processor 25171 | -5/Warlord | Warlord forces counterattacked 25173 | -5/Warlord | Spotted Striker 25176 | -5/Warlord | P-70 Sage assimilated allied 2U-WIN(g) 25192 | -5/Warlord | Allies destroyed Striker 25262 | -5/Warlord | Spotted Executioner 25303 | -5/Warlord | Lost 14 allies 25336 | -5/Warlord | Spotted Executioner 25378 | -5/Warlord | Lost 9 allies 25425 | -5/Warlord | Spotted Executioner 25438 | -5/Warlord | Allies destroyed Executioner 25465 | -5/Warlord | Lost 4 allies 25496 | -5/Warlord | Warlord base infiltrated, sounded retreat 25563 | -5/Warlord | Lost 9 allies 25592 | -5/Warlord | Entered Proximity Caves 25592 | -4/Proximity Caves | Accompanied by 1 ally 25595 | -4/Proximity Caves | Spotter reported a threat 25684 | -4/Proximity Caves | Spotter reported a threat 26112 | -4/Proximity Caves | Discovered exit to Factory (range 5) 26292 | -4/Proximity Caves | Entered Factory 26292 | -4/Factory | Evolved 2 slots: Utility x2 26360 | -4/Factory | Discovered new exit (range 21) 26385 | -4/Factory | Identified exit to Research 26499 | -4/Factory | Discovered new exit (range 5) 26501 | -4/Factory | Identified exit to Extension 26509 | -4/Factory | Entered Extension 26509 | -4/Extension | Accompanied by 1 ally 26709 | -4/Extension | Rescued A7 27180 | -4/Extension | Build established: Commander-Scrapper 27255 | -4/Extension | Spotted B-86 Titan 27281 | -4/Extension | Spotted B-86 Titan 27286 | -4/Extension | Destroyed B-86 Titan 27314 | -4/Extension | Destroyed B-86 Titan 27345 | -4/Extension | Lost 6 allies 27587 | -4/Extension | Build established: Scavenger-Scrapper 27792 | -4/Extension | Discovered new exit (range 6) 27799 | -4/Extension | Identified exit to Cetus 27811 | -4/Extension | Entered Cetus 27811 | -4/Cetus | Accompanied by 3 allies (A7) 27816 | -4/Cetus | Acquired a Cetus Manufacturing Module code from A7 27829 | -4/Cetus | Spotted Cetus Guard 27829 | -4/Cetus | Spotted Cetus Guard 27829 | -4/Cetus | Spotted Cetus Guard 27829 | -4/Cetus | Spotted Cetus Guard 27841 | -4/Cetus | Destroyed Cetus Guard 27843 | -4/Cetus | Destroyed Cetus Guard 27844 | -4/Cetus | Destroyed Cetus Guard 27847 | -4/Cetus | Destroyed Cetus Guard 27856 | -4/Cetus | Extracted ID and sensor layout for unrecognized location from A7's data core 27915 | -4/Cetus | Started Cetus Manufacturing Module 27926 | -4/Cetus | Discovered new exit (range 21) 27940 | -4/Cetus | Manufactured an Enhanced Grunt 27965 | -4/Cetus | Manufactured an Enhanced Grunt 27990 | -4/Cetus | Manufactured an Enhanced Grunt 28015 | -4/Cetus | Manufactured an Enhanced Grunt 28040 | -4/Cetus | Manufactured an Enhanced Grunt 28075 | -4/Cetus | Spotted Cetus Guard 28076 | -4/Cetus | Spotted Cetus Guard 28077 | -4/Cetus | Spotted Cetus Guard 28081 | -4/Cetus | Spotted Cetus Guard 28091 | -4/Cetus | Destroyed Cetus Guard 28096 | -4/Cetus | Allies destroyed Cetus Guard 28100 | -4/Cetus | Destroyed Cetus Guard 28104 | -4/Cetus | Destroyed Cetus Guard 28107 | -4/Cetus | Discovered exit to Research (range 22) 28120 | -4/Cetus | Met Revision 17 28187 | -4/Cetus | Entered Archives 28187 | -4/Archives | Accompanied by 7 allies 28244 | -4/Archives | Discovered new exit (range 22) 28252 | -4/Archives | Discovered exit to Research (range 20) 28281 | -4/Archives | Discovered new exit (range 13) 28594 | -4/Archives | System corruption reached 10% 29212 | -4/Archives | Found Exp. Thermal Shield 29564 | -4/Archives | Lrg. Botcube activated 29598 | -4/Archives | Lrg. Botcube completed mutation into treaded form, armed with 3 guns, 1 cannon. 29815 | -4/Archives | Entered Hub_04(d) 29815 | -4/Hub_04(d) | Accompanied by 5 allies 29825 | -4/Hub_04(d) | Discovered exit to Research (range 21) 30222 | -4/Hub_04(d) | Network Hub disabled 30222 | -4/Hub_04(d) | Garrison activated, responded to threat 30246 | -4/Hub_04(d) | Spotted Lightning 30248 | -4/Hub_04(d) | Spotted Lightning 30249 | -4/Hub_04(d) | Spotted Lightning 30251 | -4/Hub_04(d) | Entered Research 30251 | -3/Research | Evolved 2 slots: Propulsion x1, Utility x1 30252 | -3/Research | Identified exit to Quarantine 30451 | -3/Research | Revision forces began assault on 0b10 30475 | -3/Research | Met up with Revision 17++ 30528 | -3/Research | Identified Exp. Target Analyzer 30539 | -3/Research | Found Prototype Hackware 30549 | -3/Research | Identified Exp. Hacking Suite 30624 | -3/Research | Found Prototype Protection 30624 | -3/Research | Identified Centrium Heavy Armor Plating 30632 | -3/Research | Found Centrium Heavy Armor Plating 30751 | -3/Research | Discovered new exit (range 22) 30782 | -3/Research | Identified exit to Research 30873 | -3/Research | Build established: Scavenger-Assassin 30951 | -3/Research | Research terminal network offline 31062 | -3/Research | Entered Quarantine 31131 | -3/Quarantine | Found Alien Artifact 31475 | -3/Quarantine | Found Alien Impact Weapon 31475 | -3/Quarantine | Identified Core Stripper 31791 | -3/Quarantine | Found Alien Artifact 32181 | -3/Quarantine | Found Alien Artifact 32233 | -3/Quarantine | Build established: Hacker-Assassin 32249 | -3/Quarantine | Identified Phase Redirector 32250 | -3/Quarantine | Identified Core Reset Matrix 32326 | -3/Quarantine | System corruption reached 10% 32645 | -3/Quarantine | Spotted Fortress 32659 | -3/Quarantine | Scanned by Researcher 32681 | -3/Quarantine | Destroyed Fortress 32692 | -3/Quarantine | Lost 4 parts (3n1u) 32704 | -3/Quarantine | Identified Subatomic Replicator 32704 | -3/Quarantine | Used Core Reset Matrix 32708 | -3/Quarantine | Detected hypermatrix surge 32708 | -3/Quarantine | Sensed 4 artifacts in vicinity 32710 | -3/Quarantine | Found Prototype Reactor 32713 | -3/Quarantine | Found Prototype Device 32713 | -3/Quarantine | Identified Exp. EM Disruption Field 32740 | -3/Quarantine | Identified Vortex Chain Reactor 32777 | -3/Quarantine | Found Prototype Device 32777 | -3/Quarantine | Identified Exp. Force Field 32825 | -3/Quarantine | Found Vortex Chain Reactor 32933 | -3/Quarantine | Build established: Hacker-Tank 32933 | -3/Quarantine | Discovered new exit (range 5) 32938 | -3/Quarantine | Identified exit to Section 7 32991 | -3/Quarantine | Entered Section 7 32992 | -3/Section 7 | Sensed 18 artifacts in vicinity 32997 | -3/Section 7 | Spotted S7 Guard 33017 | -3/Section 7 | Found Integrated Thermoelectric Network 33018 | -3/Section 7 | Installed Integrated Thermoelectric Network, gained heat-energy exchange potential 33024 | -3/Section 7 | Destroyed S7 Guard 33056 | -3/Section 7 | Found Prototype Protection 33056 | -3/Section 7 | Identified Hvy. Regenerative Plating 33102 | -3/Section 7 | Spotted S7 Guard 33112 | -3/Section 7 | Found Core Physics Calibrator 33323 | -3/Section 7 | Used Subatomic Replicator to create Supercharged Integrated Reactor 33327 | -3/Section 7 | Installed Supercharged Integrated Reactor, increased core energy generation (+15) 33501 | -3/Section 7 | Destroyed 7 combat bots 33583 | -3/Section 7 | Found Prototype Processor 33583 | -3/Section 7 | Identified Exp. Armor Integrity Analyzer 33752 | -3/Section 7 | Found Integrated Reactor 33752 | -3/Section 7 | Installed Integrated Reactor, increased core energy generation (+10) 34041 | -3/Section 7 | Found Unknown Launcher 34042 | -3/Section 7 | Identified Gamma Bomb Array 34232 | -3/Section 7 | Found Integrated Dissipator 34232 | -3/Section 7 | Installed Integrated Dissipator, increased core heat dissipation (+20) 34260 | -3/Section 7 | Discovered exit to Research (range 14) 34276 | -3/Section 7 | Build established: Alien-Tank 34305 | -3/Section 7 | Spotted B-86 Titan 34391 | -3/Section 7 | Found Integrated Mediator 34391 | -3/Section 7 | Installed Integrated Mediator, increased core attachment efficiency 34561 | -3/Section 7 | Revealed the true nature of CR-A16's Pointy Stick 34564 | -3/Section 7 | Destroyed B-86 Titan 34606 | -3/Section 7 | Spotted Executioner 34625 | -3/Section 7 | Spotted Executioner 34629 | -3/Section 7 | Destroyed Executioner 34654 | -3/Section 7 | Destroyed Executioner 34693 | -3/Section 7 | Found Prototype Processor 34693 | -3/Section 7 | Identified Exp. Core Analyzer 34696 | -3/Section 7 | Found Prototype Processor 34696 | -3/Section 7 | Identified Exp. Targeting Computer 34700 | -3/Section 7 | Found Prototype Device 34700 | -3/Section 7 | Identified Adv. Kinecellerator 34741 | -3/Section 7 | First assault squad dispatched 34743 | -3/Section 7 | Found Transdimensional Reconstructor 34893 | -3/Section 7 | Spotted B-99 Colossus 34941 | -3/Section 7 | Destroyed B-99 Colossus 35016 | -3/Section 7 | Found Integrated Reactor 35016 | -3/Section 7 | Installed Integrated Reactor, increased core energy generation (+10) 35019 | -3/Section 7 | Found Integrated Reactor 35019 | -3/Section 7 | Installed Integrated Reactor, increased core energy generation (+10) 35045 | -3/Section 7 | Spotted Alpha 7 35078 | -3/Section 7 | Found LRC Energy Well 35078 | -3/Section 7 | Installed LRC Energy Well, increased energy storage capacity (+250) 35081 | -3/Section 7 | Found LRC Storage 35081 | -3/Section 7 | Installed LRC Storage, increased inventory capacity (+2) 35488 | -3/Section 7 | Entered Research 35488 | -2/Research | Evolved 2 slots: Propulsion x1, Utility x1 35514 | -2/Research | Build established: Alien-Skirmisher 35702 | -2/Research | Identified exit to Testing 35887 | -2/Research | Found Corrupted Unknown Device 36002 | -2/Research | Scrapoid reinforcements arrived 36219 | -2/Research | Lost 3 allies 36221 | -2/Research | Entered Testing 36254 | -2/Testing | Found Prototype Energy Cannon 36254 | -2/Testing | Identified Hpw. Disruptor Cannon 36483 | -2/Testing | Identified exit to Access 36530 | -2/Testing | Spotted Striker 36547 | -2/Testing | Found Prototype Device 36547 | -2/Testing | Identified AEGIS Remote Shield 36589 | -2/Testing | Spotted Striker 36615 | -2/Testing | Found Prototype Energy Cannon 36615 | -2/Testing | Identified Null Cannon 36882 | -2/Testing | Found Prototype Energy Gun 36882 | -2/Testing | Identified Enh. Gamma Rifle 37398 | -2/Testing | Spotted PG-QJRD35ZL8J 37764 | -2/Testing | First assault squad dispatched 37915 | -2/Testing | Identified Quantum Capacitor 37917 | -2/Testing | Entered Access 37917 | -1/Access | Evolved 2 slots: Utility x2 38213 | -1/Access | Build established: Alien-Gunner 38417 | -1/Access | First assault squad dispatched 38564 | -1/Access | Destroyed 10 combat bots 38619 | -1/Access | Destroyed 8 combat bots 39262 | -1/Access | Spotted B-99 Colossus 39283 | -1/Access | Destroyed B-99 Colossus 39330 | -1/Access | Spotted B-99 Colossus 39350 | -1/Access | Discovered new exit (range 8) 39360 | -1/Access | Identified exit to Command 39445 | -1/Access | Entered Command 39973 | -1/Command | First assault squad dispatched 40027 | -1/Command | Spotted B-99 Colossus 40074 | -1/Command | Destroyed B-99 Colossus 40197 | -1/Command | Found Prototype Ballistic Gun 40244 | -1/Command | Identified Multirail 40302 | -1/Command | Destroyed 11 combat bots 40370 | -1/Command | Scrapoids reinforcements arrived? 40393 | -1/Command | Spotted M Guard 40393 | -1/Command | Spotted Combat Programmer 40397 | -1/Command | Spotted M Guard 40398 | -1/Command | Spotted Combat Programmer 40419 | -1/Command | Destroyed Combat Programmer 40436 | -1/Command | Destroyed Combat Programmer 40481 | -1/Command | Lost 4 allies 40490 | -1/Command | Destroyed M Guard 40512 | -1/Command | Destroyed M Guard 40512 | -1/Command | All MAIN.C guards destroyed 40520 | -1/Command | Found Hvy. Regenerative Plating 40524 | -1/Command | Found Prototype Reactor 40525 | -1/Command | Identified Zero-point Reactor 40529 | -1/Command | Found Zero-point Reactor 40535 | -1/Command | Found AEGIS Remote Shield 40543 | -1/Command | Found Prototype Device 40544 | -1/Command | Identified Thermal Barrier 40558 | -1/Command | Found Exp. Targeting Computer 40576 | -1/Command | Found Exp. Targeting Computer 40584 | -1/Command | Found Zero-point Reactor 40586 | -1/Command | Found Zero-point Reactor 40593 | -1/Command | Found AEGIS Remote Shield 40828 | -1/Command | Met MAIN.C 40832 | -1/Command | 0b10 Conduit disabled 40851 | -1/Command | Destroyed MAIN.C Shell 40852 | -1/Command | MAIN.C activated Command garrisons 40907 | -1/Command | Destroyed MAIN.C 40939 | -1/Command | Discovered new exit (range 47) 40939 | -1/Command | Discovered new exit (range 83) 40939 | -1/Command | Extracted map data and part IDs from MAIN.C's data core 40967 | -1/Command | Spotted B-99 Colossus 41022 | -1/Command | System corruption reached 10% 41055 | -1/Command | Lost 3 parts (1n2u) 41067 | -1/Command | Destroyed 13 combat bots 42063 | -1/Command | Found Exp. System Purifier 42205 | -1/Command | Found Beam Splitter 42209 | -1/Command | Found Exp. Focal Shield 42213 | -1/Command | Found Exp. Cloaking Device 42253 | -1/Command | Found Vortex Chain Reactor 42256 | -1/Command | Found Vortex Chain Reactor 42947 | -1/Command | Found Quantum Capacitor 43079 | -1/Command | Found Hvy. Regenerative Plating 43099 | -1/Command | Found Unknown Device 43099 | -1/Command | Identified Scrap Suit 43905 | -1/Command | Found Exp. Core Analyzer 43917 | -1/Command | Found Adv. Kinecellerator 43922 | -1/Command | Found Exp. Core Analyzer 43946 | -1/Command | Found Exp. Targeting Computer 43956 | -1/Command | Found Exp. Core Analyzer 45216 | -1/Command | Warped through subspace to slip node 45216 | -1/Command | Discovered new exit (range 4) 45228 | -1/Command | Entered Access_0 45229 | -1/Access_0 | Sensed 4 artifacts in vicinity 45230 | -1/Access_0 | Met Architect 45233 | -1/Access_0 | Architect warped through subspace 45236 | -1/Access_0 | Destroyed A8 45264 | -1/Access_0 | Architect warped through subspace 45292 | -1/Access_0 | Architect warped through subspace 45317 | -1/Access_0 | Architect warped through subspace 45344 | -1/Access_0 | Architect warped through subspace 45366 | -1/Access_0 | Architect warped through subspace 45386 | -1/Access_0 | Architect warped through subspace 45410 | -1/Access_0 | Architect warped through subspace 45429 | -1/Access_0 | Architect warped through subspace 45447 | -1/Access_0 | Architect warped through subspace 45473 | -1/Access_0 | Architect warped through subspace 45487 | -1/Access_0 | Found Hpw. Transdimensional Reconstructor 45500 | -1/Access_0 | Architect warped through subspace 45529 | -1/Access_0 | Architect warped through subspace 45563 | -1/Access_0 | Architect warped through subspace 45607 | -1/Access_0 | Architect warped through subspace 45617 | -1/Access_0 | A6 warped into view 45624 | -1/Access_0 | Destroyed A6 45645 | -1/Access_0 | Architect warped through subspace 45662 | -1/Access_0 | Found Integrated Reactor 45662 | -1/Access_0 | Installed Integrated Reactor, increased core energy generation (+10) 45675 | -1/Access_0 | Architect warped through subspace 45706 | -1/Access_0 | Architect warped through subspace 45737 | -1/Access_0 | Architect warped through subspace 45779 | -1/Access_0 | Architect warped through subspace 45813 | -1/Access_0 | Architect warped through subspace 45845 | -1/Access_0 | Architect warped through subspace 45882 | -1/Access_0 | Architect warped through subspace 45913 | -1/Access_0 | Architect warped through subspace 45937 | -1/Access_0 | Architect warped through subspace 45960 | -1/Access_0 | Architect warped through subspace 45975 | -1/Access_0 | Found Exp. Phase Shifter 45980 | -1/Access_0 | Architect warped through subspace 46001 | -1/Access_0 | Subspace Access Node disabled 46019 | -1/Access_0 | Architect warped through subspace 46040 | -1/Access_0 | Architect warped through subspace 46074 | -1/Access_0 | Architect warped through subspace 46109 | -1/Access_0 | Architect warped through subspace 46112 | -1/Access_0 | Subspace Access Node disabled 46141 | -1/Access_0 | Architect warped through subspace 46195 | -1/Access_0 | Architect warped through subspace 46239 | -1/Access_0 | Architect warped through subspace 46283 | -1/Access_0 | Architect warped through subspace 46324 | -1/Access_0 | Architect warped through subspace 46362 | -1/Access_0 | Architect warped through subspace 46393 | -1/Access_0 | Architect warped through subspace 46420 | -1/Access_0 | Architect warped through subspace 46461 | -1/Access_0 | Architect warped through subspace 46494 | -1/Access_0 | Architect warped through subspace 46525 | -1/Access_0 | Architect warped through subspace 46549 | -1/Access_0 | Architect warped through subspace 46563 | -1/Access_0 | A5 warped into view 46573 | -1/Access_0 | Architect warped through subspace 46579 | -1/Access_0 | Destroyed A5 46599 | -1/Access_0 | Architect warped through subspace 46610 | -1/Access_0 | Architect warped through subspace 46642 | -1/Access_0 | Architect warped through subspace 46652 | -1/Access_0 | Found Point Singularity Launcher 46655 | -1/Access_0 | Architect warped through subspace 46659 | -1/Access_0 | Found Spectral Analyzer 46678 | -1/Access_0 | Architect warped through subspace 46692 | -1/Access_0 | Architect warped through subspace 46709 | -1/Access_0 | Architect warped through subspace 46724 | -1/Access_0 | Architect warped through subspace 46729 | -1/Access_0 | Subspace Access Node disabled 46737 | -1/Access_0 | Architect warped through subspace 46760 | -1/Access_0 | Core integrity fell below 50% 46762 | -1/Access_0 | Architect warped through subspace 46784 | -1/Access_0 | Architect warped through subspace 46806 | -1/Access_0 | Architect warped through subspace 46833 | -1/Access_0 | Architect warped through subspace 46855 | -1/Access_0 | Architect warped through subspace 46882 | -1/Access_0 | Architect warped through subspace 46902 | -1/Access_0 | Architect warped through subspace 46927 | -1/Access_0 | Architect warped through subspace 46952 | -1/Access_0 | Architect warped through subspace 46970 | -1/Access_0 | Architect warped through subspace 46990 | -1/Access_0 | Architect warped through subspace 47017 | -1/Access_0 | Architect warped through subspace 47035 | -1/Access_0 | Architect warped through subspace 47049 | -1/Access_0 | Architect warped through subspace 47063 | -1/Access_0 | Architect warped through subspace 47093 | -1/Access_0 | Architect warped through subspace 47108 | -1/Access_0 | Architect warped through subspace 47120 | -1/Access_0 | Architect warped through subspace 47134 | -1/Access_0 | Architect warped through subspace 47143 | -1/Access_0 | Subspace Access Node disabled 47159 | -1/Access_0 | Destroyed Architect 47160 | -1/Access_0 | Architect triggered a singularity event 47160 | -1/Access_0 | Warped through subspace to slip node 47160 | -1/Access_0 | Discovered new exit (range 8) 47165 | -1/Access_0 | Released all parts (18) 47168 | *** | Escaped singularity! Last Messages --------------- 47165_ Released Enh. Armored Heavy Treads. 47165_ Released Exp. Armor Integrity Analyzer. 47165_ Released Huge Storage Unit. 47165_ YI-UF0's Bottomless Matter Pit crushed and broken. 47165_ Released Exp. Targeting Computer. 47165_ Released Hdn. Centrium Heavy Treads. 47165_ Released Exp. Targeting Computer. 47165_ Released Graphene Brace. 47165_ Graphene Brace crushed and broken. 47165_ Released Spectral Analyzer. 47165_ Released Enh. Nova Cannon. 47165_ Enh. Nova Cannon crushed and broken. 47165_ Released Lyr. Medium Armor Plating. 47165_ Lyr. Medium Armor Plating crushed and broken. 47165_ Released Point Singularity Launcher. 47165_ Point Singularity Launcher crushed and broken. 47166_ A0_COM: 5. 47166_ Extracted 2 energy. 47167_ A0_COM: 4. 47168_ A0_COM: 3. Map ----- +----------------------------------------------------+ | | | | | | | | | | | | | | | | | | | | | | | | | | | | | | | | | ?????????????????????????????????????????????????? | | ?????????????????????????????????????????????????? | | ?????????????????????????????????????????????????? | | ?????????????????????????????????????????????????? | | ?????????????????????????????????????????????????? | | ?????????????????????????????????????????????????? | | ????????????????????????###??????????????????????? | | ???????????????????????## ##?????????????????????? | | ???????????????????????# #?????????????????????? | | ???????????????????????# @ #?????????????????????? | | ??????????????????????## #?????????????????????? | | ??????????????????????# = #?????????????????????? | | ??????????????????????#!!!##?????????????????????? | | ??????????????????????##!![#?????????????????????? | | ??????????????????????#!]!]#?????????????????????? | | ??????????????????????#!!=##?????????????????????? | | ??????????????????????#=]!]#?????????????????????? | | ??????????????????????#!*]##?????????????????????? | | ??????????????????????##!*#??????????????????????? | | ???????????????????????####??????????????????????? | | ?????????????????????????????????????????????????? | | ?????????????????????????????????????????????????? | | ?????????????????????????????????????????????????? | | ?????????????????????????????????????????????????? | | ?????????????????????????????????????????????????? | | ?????????????????????????????????????????????????? | | ?????????????????????????????????????????????????? | | ?????????????????????????????????????????????????? | | ?????????????????????????????????????????????????? | | ?????????????????????????????????????????????????? | | ?????????????????????????????????????????????????? | | ?????????????????????????????????????????????????? | | ?????????????????????????????????????????????????? | | ?????????????????????????????????????????????????? | +----------------------------------------------------+ Best States ------------- Heat Dissipation 72 Coolant Potential 100 Energy Generation 110 Energy Capacity 1450 Matter Stores 465 Matter Capacity 1800 Sight Range 24 Robot Scan Range 20 Terrain Scan Density 10 Jamming Range 16 Cloak Strength 4 Additional Mass Support 20 Corruption Block 15 Armor Coverage 1650 Resistance: KI 30 Resistance: TH 75 Resistance: EM 75 Core Shielding 20 Point Defense Rating 240 Weapon Cycling 25 Phase Shifting 20 Evasion (%) 60 Targeting Accuracy 36 Melee Accuracy 8 Target Analysis 10 Core Analysis 12 Armor Integrity Analysis 50 Recoil Reduction 6 Kinecelleration 50 Offensive Hacking 30 Item Schematics ----------------- Exp. Energy Well | -3/Quarantine | Archive Robot Schematics ------------------ R-06 Scavenger | -3/Quarantine | Archive K-01 Serf | -3/Quarantine | Archive Fabricated ------------ Nothing Alien Tech Used ----------------- Core Stripper Core Reset Matrix Integrated Thermoelectric Network Core Physics Calibrator Subatomic Replicator Supercharged Integrated Reactor Integrated Reactor Integrated Dissipator Integrated Mediator LRC Energy Well LRC Storage Transdimensional Reconstructor High-powered Transdimensional Reconstructor Achievements -------------- None Challenges ------------ None Game ------ Seed ArcMakeshiftBuckler Manual? 0 Play Time 13:15:51 Cumulative 1324.9 hours Start 2024.08.13 @ 19:16:22 End 2024.08.24 @ 03:02:23 Sessions 11 Manual Loads 0 Difficulty Rogue Special Mode None Game No. 466 Rogue 466 Adventurer 0 Explorer 0 Win Type 6 Total 30 Types 14/2/8/0/0/0/6/0/0 Lore% 74 Gallery% 89 Achievement% 85 Wizard Run 0 Options --------- Layout 1 ASCII 0 Keyboard 0 Movement Vi Keybinds 0 Fullscreen 0 Font 14/CherryShadow Map View 64x42 Zoom Use 0% Tactical HUD 1 Map Filters NONE Filters NONE Steam 1 RUN: 7f9bca8d-cce6-491f-9fa2-57a0a0016145